Workbook

Sheet ConduitBending
B1: FROM: | C1: Mark Biegert
B2: SUBJECT: | C2: Conduit Bending Table
B3: DATE: | C3: =TEXT(43110,"dd-mmm-yyy") -> 10-Jan-2018 | R3: My Shrinkage and Offset Table
U4: Angle (°) | W4: Shrinkage | X4: Bend Multiple
V5: =S8 -> 0.0625 | W5: 1 | X5: 2
B6: Prototype Calculation (i.e. Work One Example) | R6: row | S6: 1 | U6: 10 | V6: 1 | W6: 0.0625 | X6: 5.7588
R7: col | S7: 1 | U7: 22.5 | V7: 2 | W7: 0.1875 | X7: 2.6131
B8: Parameter | C8: Symbol | D8: Value | E8: Unit | R8: result | S8: =INDEX(D10:D11,S7) -> 0.0625 | U8: 30 | V8: 3 | W8: 0.25 | X8: 2
B9: Bend Angle | C9: _Θ | D9: 45 | E9: deg | U9: 45 | V9: 4 | W9: 0.4375 | X9: 1.4142
B10: Shrinkage | C10: _S | D10: =MROUND((TAN(INDEX(U6:U10,S6)*PI()/360)),1/16) -> 0.0625 | E10: in length/inch rise | U10: 60 | V10: 5 | W10: 0.5625 | X10: 1.1547
B11: Bend Distance | C11: _BD | D11: =ROUND(_xlfn.CSC(INDEX(U6:U10,S6)*PI()/180),4) -> 5.7588 | E11: in dist./in rise
B13: My Reference Table
B22: Published Reference Table
B24: Angle (°) | C24: Shrinkage | D24: Bend Mult.
B25: 10 | C25: 0.0625 | D25: 5.7588
B26: 22.5 | C26: 0.1875 | D26: 2.6131
B27: 30 | C27: 0.25 | D27: 2
B28: 45 | C28: 0.375 | D28: 1.4142
B29: 60 | C29: 0.5 | D29: 1.1547
B31: Calculation Prototypes
B33: Shrinkage | I33: Bend Offset
B35: Parameter | C35: Value | D35: Unit | I35: Parameter | J35: Value | K35: Unit
B36: Bend Angle | C36: 22.5 | D36: deg | I36: Bend Angle | J36: 10 | K36: deg
B37: Bend Offset | C37: 10 | D37: in | I37: Bend Offset | J37: 1 | K37: in
B38: Shrinkage | C38: =MROUND(VLOOKUP(C36,_Table,2,0)*C37,1/16) -> 1.875 | D38: in | I38: Bend Dist. | J38: =MROUND(VLOOKUP(J36,_Table,3,0)*J37,1/16) -> 5.75 | K38: in
B40: Data Tables
B42: Shrinkage Table | I42: Bend Distance Table
C44: Angle | J44: Angle
B45: =C38 -> 1.875 | C45: 10 | D45: 22.5 | E45: 30 | F45: 45 | G45: 60 | I45: =J38 -> 5.75 | J45: 10 | K45: 22.5 | L45: 30 | M45: 45 | N45: 60
B46: 0.5 | C46: 0.0625 | D46: 0.125 | E46: 0.125 | F46: 0.1875 | G46: 0.25 | I46: 0.5 | J46: 2.875 | K46: 1.3125 | L46: 1 | M46: 0.6875 | N46: 0.5625
B47: 1 | C47: 0.0625 | D47: 0.1875 | E47: 0.25 | F47: 0.375 | G47: 0.5 | I47: 1 | J47: 5.75 | K47: 2.625 | L47: 2 | M47: 1.4375 | N47: 1.125
B48: 1.5 | C48: 0.125 | D48: 0.3125 | E48: 0.375 | F48: 0.5625 | G48: 0.75 | I48: 1.5 | J48: 8.625 | K48: 3.9375 | L48: 3 | M48: 2.125 | N48: 1.75
B49: 2 | C49: 0.125 | D49: 0.375 | E49: 0.5 | F49: 0.75 | G49: 1 | I49: 2 | J49: 11.5 | K49: 5.25 | L49: 4 | M49: 2.8125 | N49: 2.3125
B50: 2.5 | C50: 0.1875 | D50: 0.5 | E50: 0.625 | F50: 0.9375 | G50: 1.25 | I50: 2.5 | J50: 14.375 | K50: 6.5625 | L50: 5 | M50: 3.5625 | N50: 2.875
B51: 3 | C51: 0.1875 | D51: 0.5625 | E51: 0.75 | F51: 1.125 | G51: 1.5 | I51: 3 | J51: 17.25 | K51: 7.8125 | L51: 6 | M51: 4.25 | N51: 3.4375
B52: 3.5 | C52: 0.25 | D52: 0.6875 | E52: 0.875 | F52: 1.3125 | G52: 1.75 | I52: 3.5 | J52: 20.125 | K52: 9.125 | L52: 7 | M52: 4.9375 | N52: 4.0625
B53: 4 | C53: 0.25 | D53: 0.75 | E53: 1 | F53: 1.5 | G53: 2 | I53: 4 | J53: 23.0625 | K53: 10.4375 | L53: 8 | M53: 5.6875 | N53: 4.625
B54: 4.5 | C54: 0.3125 | D54: 0.875 | E54: 1.125 | F54: 1.6875 | G54: 2.25 | I54: 4.5 | J54: 25.9375 | K54: 11.75 | L54: 9 | M54: 6.375 | N54: 5.1875
B55: 5 | C55: 0.3125 | D55: 0.9375 | E55: 1.25 | F55: 1.875 | G55: 2.5 | I55: 5 | J55: 28.8125 | K55: 13.0625 | L55: 10 | M55: 7.0625 | N55: 5.75
B56: 5.5 | C56: 0.375 | D56: 1.0625 | E56: 1.375 | F56: 2.0625 | G56: 2.75 | I56: 5.5 | J56: 31.6875 | K56: 14.375 | L56: 11 | M56: 7.75 | N56: 6.375
B57: 6 | C57: 0.375 | D57: 1.125 | E57: 1.5 | F57: 2.25 | G57: 3 | I57: 6 | J57: 34.5625 | K57: 15.6875 | L57: 12 | M57: 8.5 | N57: 6.9375
B58: 6.5 | C58: 0.4375 | D58: 1.25 | E58: 1.625 | F58: 2.4375 | G58: 3.25 | I58: 6.5 | J58: 37.4375 | K58: 17 | L58: 13 | M58: 9.1875 | N58: 7.5
B59: 7 | C59: 0.4375 | D59: 1.3125 | E59: 1.75 | F59: 2.625 | G59: 3.5 | I59: 7 | J59: 40.3125 | K59: 18.3125 | L59: 14 | M59: 9.875 | N59: 8.0625
B60: 7.5 | C60: 0.5 | D60: 1.4375 | E60: 1.875 | F60: 2.8125 | G60: 3.75 | I60: 7.5 | J60: 43.1875 | K60: 19.625 | L60: 15 | M60: 10.625 | N60: 8.6875
B61: 8 | C61: 0.5 | D61: 1.5 | E61: 2 | F61: 3 | G61: 4 | I61: 8 | J61: 46.0625 | K61: 20.875 | L61: 16 | M61: 11.3125 | N61: 9.25
B62: 8.5 | C62: 0.5625 | D62: 1.625 | E62: 2.125 | F62: 3.1875 | G62: 4.25 | I62: 8.5 | J62: 48.9375 | K62: 22.1875 | L62: 17 | M62: 12 | N62: 9.8125
B63: 9 | C63: 0.5625 | D63: 1.6875 | E63: 2.25 | F63: 3.375 | G63: 4.5 | I63: 9 | J63: 51.8125 | K63: 23.5 | L63: 18 | M63: 12.75 | N63: 10.375
B64: 9.5 | C64: 0.625 | D64: 1.8125 | E64: 2.375 | F64: 3.5625 | G64: 4.75 | I64: 9.5 | J64: 54.6875 | K64: 24.8125 | L64: 19 | M64: 13.4375 | N64: 11
B65: 10 | C65: 0.625 | D65: 1.875 | E65: 2.5 | F65: 3.75 | G65: 5 | I65: 10 | J65: 57.5625 | K65: 26.125 | L65: 20 | M65: 14.125 | N65: 11.5625
B66: 11 | C66: 0.6875 | D66: 2.0625 | E66: 2.75 | F66: 4.125 | G66: 5.5 | I66: 11 | J66: 63.375 | K66: 28.75 | L66: 22 | M66: 15.5625 | N66: 12.6875
B67: 12 | C67: 0.75 | D67: 2.25 | E67: 3 | F67: 4.5 | G67: 6 | I67: 12 | J67: 69.125 | K67: 31.375 | L67: 24 | M67: 17 | N67: 13.875
B68: 13 | C68: 0.8125 | D68: 2.4375 | E68: 3.25 | F68: 4.875 | G68: 6.5 | I68: 13 | J68: 74.875 | K68: 34 | L68: 26 | M68: 18.375 | N68: 15
B69: 14 | C69: 0.875 | D69: 2.625 | E69: 3.5 | F69: 5.25 | G69: 7 | I69: 14 | J69: 80.625 | K69: 36.5625 | L69: 28 | M69: 19.8125 | N69: 16.1875
B70: 15 | C70: 0.9375 | D70: 2.8125 | E70: 3.75 | F70: 5.625 | G70: 7.5 | I70: 15 | J70: 86.375 | K70: 39.1875 | L70: 30 | M70: 21.1875 | N70: 17.3125
B71: 16 | C71: 1 | D71: 3 | E71: 4 | F71: 6 | G71: 8 | I71: 16 | J71: 92.125 | K71: 41.8125 | L71: 32 | M71: 22.625 | N71: 18.5
B72: 17 | C72: 1.0625 | D72: 3.1875 | E72: 4.25 | F72: 6.375 | G72: 8.5 | I72: 17 | J72: 97.875 | K72: 44.4375 | L72: 34 | M72: 24.0625 | N72: 19.625
B73: 18 | C73: 1.125 | D73: 3.375 | E73: 4.5 | F73: 6.75 | G73: 9 | I73: 18 | J73: 103.6875 | K73: 47.0625 | L73: 36 | M73: 25.4375 | N73: 20.8125
B74: 19 | C74: 1.1875 | D74: 3.5625 | E74: 4.75 | F74: 7.125 | G74: 9.5 | I74: 19 | J74: 109.4375 | K74: 49.625 | L74: 38 | M74: 26.875 | N74: 21.9375
B75: 20 | C75: 1.25 | D75: 3.75 | E75: 5 | F75: 7.5 | G75: 10 | I75: 20 | J75: 115.1875 | K75: 52.25 | L75: 40 | M75: 28.3125 | N75: 23.125
B76: 21 | C76: 1.3125 | D76: 3.9375 | E76: 5.25 | F76: 7.875 | G76: 10.5 | I76: 21 | J76: 120.9375 | K76: 54.875 | L76: 42 | M76: 29.6875 | N76: 24.25
B77: 22 | C77: 1.375 | D77: 4.125 | E77: 5.5 | F77: 8.25 | G77: 11 | I77: 22 | J77: 126.6875 | K77: 57.5 | L77: 44 | M77: 31.125 | N77: 25.375
B78: 23 | C78: 1.4375 | D78: 4.3125 | E78: 5.75 | F78: 8.625 | G78: 11.5 | I78: 23 | J78: 132.4375 | K78: 60.125 | L78: 46 | M78: 32.5 | N78: 26.5625
B79: 24 | C79: 1.5 | D79: 4.5 | E79: 6 | F79: 9 | G79: 12 | I79: 24 | J79: 138.1875 | K79: 62.6875 | L79: 48 | M79: 33.9375 | N79: 27.6875
B80: 25 | C80: 1.5625 | D80: 4.6875 | E80: 6.25 | F80: 9.375 | G80: 12.5 | I80: 25 | J80: 144 | K80: 65.3125 | L80: 50 | M80: 35.375 | N80: 28.875
B82: Master Table
C84: Angle
C85: =$C$45 -> 10 | E85: =$D$45 -> 22.5 | G85: =$E$45 -> 30 | I85: =$F$45 -> 45 | K85: =$G$45 -> 60
B86: Bend Offset | C86: Shrinkage | D86: Bend Dist. | E86: Shrinkage | F86: Bend Dist. | G86: Shrinkage | H86: Bend Dist. | I86: Shrinkage | J86: Bend Dist. | K86: Shrinkage | L86: Bend Dist.
B87: =$B$46 -> 0.5 | C87: =$C$46 -> 0.0625 | D87: =$J$46 -> 2.875 | E87: =$D$46 -> 0.125 | F87: =$K$46 -> 1.3125 | G87: =$E$46 -> 0.125 | H87: =$L$46 -> 1 | I87: =$F$46 -> 0.1875 | J87: =$M$46 -> 0.6875 | K87: =$G$46 -> 0.25 | L87: =$N$46 -> 0.5625
B88: =$B$47 -> 1 | C88: =$C$47 -> 0.0625 | D88: =$J$47 -> 5.75 | E88: =$D$47 -> 0.1875 | F88: =$K$47 -> 2.625 | G88: =$E$47 -> 0.25 | H88: =$L$47 -> 2 | I88: =$F$47 -> 0.375 | J88: =$M$47 -> 1.4375 | K88: =$G$47 -> 0.5 | L88: =$N$47 -> 1.125
B89: =$B$48 -> 1.5 | C89: =$C$48 -> 0.125 | D89: =$J$48 -> 8.625 | E89: =$D$48 -> 0.3125 | F89: =$K$48 -> 3.9375 | G89: =$E$48 -> 0.375 | H89: =$L$48 -> 3 | I89: =$F$48 -> 0.5625 | J89: =$M$48 -> 2.125 | K89: =$G$48 -> 0.75 | L89: =$N$48 -> 1.75
B90: =$B$49 -> 2 | C90: =$C$49 -> 0.125 | D90: =$J$49 -> 11.5 | E90: =$D$49 -> 0.375 | F90: =$K$49 -> 5.25 | G90: =$E$49 -> 0.5 | H90: =$L$49 -> 4 | I90: =$F$49 -> 0.75 | J90: =$M$49 -> 2.8125 | K90: =$G$49 -> 1 | L90: =$N$49 -> 2.3125
B91: =$B$50 -> 2.5 | C91: =$C$50 -> 0.1875 | D91: =$J$50 -> 14.375 | E91: =$D$50 -> 0.5 | F91: =$K$50 -> 6.5625 | G91: =$E$50 -> 0.625 | H91: =$L$50 -> 5 | I91: =$F$50 -> 0.9375 | J91: =$M$50 -> 3.5625 | K91: =$G$50 -> 1.25 | L91: =$N$50 -> 2.875
B92: =$B$51 -> 3 | C92: =$C$51 -> 0.1875 | D92: =$J$51 -> 17.25 | E92: =$D$51 -> 0.5625 | F92: =$K$51 -> 7.8125 | G92: =$E$51 -> 0.75 | H92: =$L$51 -> 6 | I92: =$F$51 -> 1.125 | J92: =$M$51 -> 4.25 | K92: =$G$51 -> 1.5 | L92: =$N$51 -> 3.4375
B93: =$B$52 -> 3.5 | C93: =$C$52 -> 0.25 | D93: =$J$52 -> 20.125 | E93: =$D$52 -> 0.6875 | F93: =$K$52 -> 9.125 | G93: =$E$52 -> 0.875 | H93: =$L$52 -> 7 | I93: =$F$52 -> 1.3125 | J93: =$M$52 -> 4.9375 | K93: =$G$52 -> 1.75 | L93: =$N$52 -> 4.0625
B94: =$B$53 -> 4 | C94: =$C$53 -> 0.25 | D94: =$J$53 -> 23.0625 | E94: =$D$53 -> 0.75 | F94: =$K$53 -> 10.4375 | G94: =$E$53 -> 1 | H94: =$L$53 -> 8 | I94: =$F$53 -> 1.5 | J94: =$M$53 -> 5.6875 | K94: =$G$53 -> 2 | L94: =$N$53 -> 4.625
B95: =$B$54 -> 4.5 | C95: =$C$54 -> 0.3125 | D95: =$J$54 -> 25.9375 | E95: =$D$54 -> 0.875 | F95: =$K$54 -> 11.75 | G95: =$E$54 -> 1.125 | H95: =$L$54 -> 9 | I95: =$F$54 -> 1.6875 | J95: =$M$54 -> 6.375 | K95: =$G$54 -> 2.25 | L95: =$N$54 -> 5.1875
B96: =$B$55 -> 5 | C96: =$C$55 -> 0.3125 | D96: =$J$55 -> 28.8125 | E96: =$D$55 -> 0.9375 | F96: =$K$55 -> 13.0625 | G96: =$E$55 -> 1.25 | H96: =$L$55 -> 10 | I96: =$F$55 -> 1.875 | J96: =$M$55 -> 7.0625 | K96: =$G$55 -> 2.5 | L96: =$N$55 -> 5.75
B97: =$B$56 -> 5.5 | C97: =$C$56 -> 0.375 | D97: =$J$56 -> 31.6875 | E97: =$D$56 -> 1.0625 | F97: =$K$56 -> 14.375 | G97: =$E$56 -> 1.375 | H97: =$L$56 -> 11 | I97: =$F$56 -> 2.0625 | J97: =$M$56 -> 7.75 | K97: =$G$56 -> 2.75 | L97: =$N$56 -> 6.375
B98: =$B$57 -> 6 | C98: =$C$57 -> 0.375 | D98: =$J$57 -> 34.5625 | E98: =$D$57 -> 1.125 | F98: =$K$57 -> 15.6875 | G98: =$E$57 -> 1.5 | H98: =$L$57 -> 12 | I98: =$F$57 -> 2.25 | J98: =$M$57 -> 8.5 | K98: =$G$57 -> 3 | L98: =$N$57 -> 6.9375
B99: =$B$58 -> 6.5 | C99: =$C$58 -> 0.4375 | D99: =$J$58 -> 37.4375 | E99: =$D$58 -> 1.25 | F99: =$K$58 -> 17 | G99: =$E$58 -> 1.625 | H99: =$L$58 -> 13 | I99: =$F$58 -> 2.4375 | J99: =$M$58 -> 9.1875 | K99: =$G$58 -> 3.25 | L99: =$N$58 -> 7.5
B100: =$B$59 -> 7 | C100: =$C$59 -> 0.4375 | D100: =$J$59 -> 40.3125 | E100: =$D$59 -> 1.3125 | F100: =$K$59 -> 18.3125 | G100: =$E$59 -> 1.75 | H100: =$L$59 -> 14 | I100: =$F$59 -> 2.625 | J100: =$M$59 -> 9.875 | K100: =$G$59 -> 3.5 | L100: =$N$59 -> 8.0625
B101: =$B$60 -> 7.5 | C101: =$C$60 -> 0.5 | D101: =$J$60 -> 43.1875 | E101: =$D$60 -> 1.4375 | F101: =$K$60 -> 19.625 | G101: =$E$60 -> 1.875 | H101: =$L$60 -> 15 | I101: =$F$60 -> 2.8125 | J101: =$M$60 -> 10.625 | K101: =$G$60 -> 3.75 | L101: =$N$60 -> 8.6875
B102: =$B$61 -> 8 | C102: =$C$61 -> 0.5 | D102: =$J$61 -> 46.0625 | E102: =$D$61 -> 1.5 | F102: =$K$61 -> 20.875 | G102: =$E$61 -> 2 | H102: =$L$61 -> 16 | I102: =$F$61 -> 3 | J102: =$M$61 -> 11.3125 | K102: =$G$61 -> 4 | L102: =$N$61 -> 9.25
B103: =$B$62 -> 8.5 | C103: =$C$62 -> 0.5625 | D103: =$J$62 -> 48.9375 | E103: =$D$62 -> 1.625 | F103: =$K$62 -> 22.1875 | G103: =$E$62 -> 2.125 | H103: =$L$62 -> 17 | I103: =$F$62 -> 3.1875 | J103: =$M$62 -> 12 | K103: =$G$62 -> 4.25 | L103: =$N$62 -> 9.8125
B104: =$B$63 -> 9 | C104: =$C$63 -> 0.5625 | D104: =$J$63 -> 51.8125 | E104: =$D$63 -> 1.6875 | F104: =$K$63 -> 23.5 | G104: =$E$63 -> 2.25 | H104: =$L$63 -> 18 | I104: =$F$63 -> 3.375 | J104: =$M$63 -> 12.75 | K104: =$G$63 -> 4.5 | L104: =$N$63 -> 10.375
B105: =$B$64 -> 9.5 | C105: =$C$64 -> 0.625 | D105: =$J$64 -> 54.6875 | E105: =$D$64 -> 1.8125 | F105: =$K$64 -> 24.8125 | G105: =$E$64 -> 2.375 | H105: =$L$64 -> 19 | I105: =$F$64 -> 3.5625 | J105: =$M$64 -> 13.4375 | K105: =$G$64 -> 4.75 | L105: =$N$64 -> 11
B106: =$B$65 -> 10 | C106: =$C$65 -> 0.625 | D106: =$J$65 -> 57.5625 | E106: =$D$65 -> 1.875 | F106: =$K$65 -> 26.125 | G106: =$E$65 -> 2.5 | H106: =$L$65 -> 20 | I106: =$F$65 -> 3.75 | J106: =$M$65 -> 14.125 | K106: =$G$65 -> 5 | L106: =$N$65 -> 11.5625
B107: =$B$66 -> 11 | C107: =$C$66 -> 0.6875 | D107: =$J$66 -> 63.375 | E107: =$D$66 -> 2.0625 | F107: =$K$66 -> 28.75 | G107: =$E$66 -> 2.75 | H107: =$L$66 -> 22 | I107: =$F$66 -> 4.125 | J107: =$M$66 -> 15.5625 | K107: =$G$66 -> 5.5 | L107: =$N$66 -> 12.6875
B108: =$B$67 -> 12 | C108: =$C$67 -> 0.75 | D108: =$J$67 -> 69.125 | E108: =$D$67 -> 2.25 | F108: =$K$67 -> 31.375 | G108: =$E$67 -> 3 | H108: =$L$67 -> 24 | I108: =$F$67 -> 4.5 | J108: =$M$67 -> 17 | K108: =$G$67 -> 6 | L108: =$N$67 -> 13.875
B109: =$B$68 -> 13 | C109: =$C$68 -> 0.8125 | D109: =$J$68 -> 74.875 | E109: =$D$68 -> 2.4375 | F109: =$K$68 -> 34 | G109: =$E$68 -> 3.25 | H109: =$L$68 -> 26 | I109: =$F$68 -> 4.875 | J109: =$M$68 -> 18.375 | K109: =$G$68 -> 6.5 | L109: =$N$68 -> 15
B110: =$B$69 -> 14 | C110: =$C$69 -> 0.875 | D110: =$J$69 -> 80.625 | E110: =$D$69 -> 2.625 | F110: =$K$69 -> 36.5625 | G110: =$E$69 -> 3.5 | H110: =$L$69 -> 28 | I110: =$F$69 -> 5.25 | J110: =$M$69 -> 19.8125 | K110: =$G$69 -> 7 | L110: =$N$69 -> 16.1875
B111: =$B$70 -> 15 | C111: =$C$70 -> 0.9375 | D111: =$J$70 -> 86.375 | E111: =$D$70 -> 2.8125 | F111: =$K$70 -> 39.1875 | G111: =$E$70 -> 3.75 | H111: =$L$70 -> 30 | I111: =$F$70 -> 5.625 | J111: =$M$70 -> 21.1875 | K111: =$G$70 -> 7.5 | L111: =$N$70 -> 17.3125
B112: =$B$71 -> 16 | C112: =$C$71 -> 1 | D112: =$J$71 -> 92.125 | E112: =$D$71 -> 3 | F112: =$K$71 -> 41.8125 | G112: =$E$71 -> 4 | H112: =$L$71 -> 32 | I112: =$F$71 -> 6 | J112: =$M$71 -> 22.625 | K112: =$G$71 -> 8 | L112: =$N$71 -> 18.5
B113: =$B$72 -> 17 | C113: =$C$72 -> 1.0625 | D113: =$J$72 -> 97.875 | E113: =$D$72 -> 3.1875 | F113: =$K$72 -> 44.4375 | G113: =$E$72 -> 4.25 | H113: =$L$72 -> 34 | I113: =$F$72 -> 6.375 | J113: =$M$72 -> 24.0625 | K113: =$G$72 -> 8.5 | L113: =$N$72 -> 19.625
B114: =$B$73 -> 18 | C114: =$C$73 -> 1.125 | D114: =$J$73 -> 103.6875 | E114: =$D$73 -> 3.375 | F114: =$K$73 -> 47.0625 | G114: =$E$73 -> 4.5 | H114: =$L$73 -> 36 | I114: =$F$73 -> 6.75 | J114: =$M$73 -> 25.4375 | K114: =$G$73 -> 9 | L114: =$N$73 -> 20.8125
B115: =$B$74 -> 19 | C115: =$C$74 -> 1.1875 | D115: =$J$74 -> 109.4375 | E115: =$D$74 -> 3.5625 | F115: =$K$74 -> 49.625 | G115: =$E$74 -> 4.75 | H115: =$L$74 -> 38 | I115: =$F$74 -> 7.125 | J115: =$M$74 -> 26.875 | K115: =$G$74 -> 9.5 | L115: =$N$74 -> 21.9375
B116: =$B$75 -> 20 | C116: =$C$75 -> 1.25 | D116: =$J$75 -> 115.1875 | E116: =$D$75 -> 3.75 | F116: =$K$75 -> 52.25 | G116: =$E$75 -> 5 | H116: =$L$75 -> 40 | I116: =$F$75 -> 7.5 | J116: =$M$75 -> 28.3125 | K116: =$G$75 -> 10 | L116: =$N$75 -> 23.125
B117: =$B$76 -> 21 | C117: =$C$76 -> 1.3125 | D117: =$J$76 -> 120.9375 | E117: =$D$76 -> 3.9375 | F117: =$K$76 -> 54.875 | G117: =$E$76 -> 5.25 | H117: =$L$76 -> 42 | I117: =$F$76 -> 7.875 | J117: =$M$76 -> 29.6875 | K117: =$G$76 -> 10.5 | L117: =$N$76 -> 24.25
B118: =$B$77 -> 22 | C118: =$C$77 -> 1.375 | D118: =$J$77 -> 126.6875 | E118: =$D$77 -> 4.125 | F118: =$K$77 -> 57.5 | G118: =$E$77 -> 5.5 | H118: =$L$77 -> 44 | I118: =$F$77 -> 8.25 | J118: =$M$77 -> 31.125 | K118: =$G$77 -> 11 | L118: =$N$77 -> 25.375
B119: =$B$78 -> 23 | C119: =$C$78 -> 1.4375 | D119: =$J$78 -> 132.4375 | E119: =$D$78 -> 4.3125 | F119: =$K$78 -> 60.125 | G119: =$E$78 -> 5.75 | H119: =$L$78 -> 46 | I119: =$F$78 -> 8.625 | J119: =$M$78 -> 32.5 | K119: =$G$78 -> 11.5 | L119: =$N$78 -> 26.5625
B120: =$B$79 -> 24 | C120: =$C$79 -> 1.5 | D120: =$J$79 -> 138.1875 | E120: =$D$79 -> 4.5 | F120: =$K$79 -> 62.6875 | G120: =$E$79 -> 6 | H120: =$L$79 -> 48 | I120: =$F$79 -> 9 | J120: =$M$79 -> 33.9375 | K120: =$G$79 -> 12 | L120: =$N$79 -> 27.6875
B121: =$B$80 -> 25 | C121: =$C$80 -> 1.5625 | D121: =$J$80 -> 144 | E121: =$D$80 -> 4.6875 | F121: =$K$80 -> 65.3125 | G121: =$E$80 -> 6.25 | H121: =$L$80 -> 50 | I121: =$F$80 -> 9.375 | J121: =$M$80 -> 35.375 | K121: =$G$80 -> 12.5 | L121: =$N$80 -> 28.875

Sheet FormulaFillDown
A1: FROM: | B1: Mark Biegert
A2: SUBJECT: | B2: Conduit Bending Table
A3: DATE: | B3: 2018-01-15
C6: Angle
C7: =C8 -> 10 | E7: =E8 -> 22.5 | G7: =G8 -> 30 | I7: =I8 -> 45 | K7: =K8 -> 60
C8: 10 | D8: 10 | E8: 22.5 | F8: 22.5 | G8: 30 | H8: 30 | I8: 45 | J8: 45 | K8: 60 | L8: 60
B9: Bend Offset | C9: Shrinkage | D9: Bend Dist. | E9: Shrinkage | F9: Bend Dist. | G9: Shrinkage | H9: Bend Dist. | I9: Shrinkage | J9: Bend Dist. | K9: Shrinkage | L9: Bend Dist.
B10: 0.5 | C10: =MROUND(MROUND((_xlfn.CSC(C$8*PI()/180)-_xlfn.COT(C$8*PI()/180)),1/16)*$B10,1/16) -> 0.0625 | D10: =MROUND(ROUND(_xlfn.CSC(D$8*PI()/180),4)*$B10,1/16) -> 2.875 | E10: =MROUND(MROUND((_xlfn.CSC(E$8*PI()/180)-_xlfn.COT(E$8*PI()/180)),1/16)*$B10,1/16) -> 0.125 | F10: =MROUND(ROUND(_xlfn.CSC(F$8*PI()/180),4)*$B10,1/16) -> 1.3125 | G10: =MROUND(MROUND((_xlfn.CSC(G$8*PI()/180)-_xlfn.COT(G$8*PI()/180)),1/16)*$B10,1/16) -> 0.125 | H10: =MROUND(ROUND(_xlfn.CSC(H$8*PI()/180),4)*$B10,1/16) -> 1 | I10: =MROUND(MROUND((_xlfn.CSC(I$8*PI()/180)-_xlfn.COT(I$8*PI()/180)),1/16)*$B10,1/16) -> 0.25 | J10: =MROUND(ROUND(_xlfn.CSC(J$8*PI()/180),4)*$B10,1/16) -> 0.6875 | K10: =MROUND(MROUND((_xlfn.CSC(K$8*PI()/180)-_xlfn.COT(K$8*PI()/180)),1/16)*$B10,1/16) -> 0.3125 | L10: =MROUND(ROUND(_xlfn.CSC(L$8*PI()/180),4)*$B10,1/16) -> 0.5625
B11: 1 | C11: =MROUND(MROUND((_xlfn.CSC(C$8*PI()/180)-_xlfn.COT(C$8*PI()/180)),1/16)*$B11,1/16) -> 0.0625 | D11: =MROUND(ROUND(_xlfn.CSC(D$8*PI()/180),4)*$B11,1/16) -> 5.75 | E11: 0.1875 | F11: 2.625 | G11: 0.25 | H11: 2 | I11: 0.4375 | J11: 1.4375 | K11: 0.5625 | L11: 1.125
B12: 1.5 | C12: 0.125 | D12: 8.625 | E12: 0.3125 | F12: 3.9375 | G12: 0.375 | H12: 3 | I12: 0.6875 | J12: 2.125 | K12: 0.875 | L12: 1.75
B13: 2 | C13: 0.125 | D13: 11.5 | E13: 0.375 | F13: 5.25 | G13: 0.5 | H13: 4 | I13: 0.875 | J13: 2.8125 | K13: 1.125 | L13: 2.3125
B14: 2.5 | C14: 0.1875 | D14: 14.375 | E14: 0.5 | F14: 6.5625 | G14: 0.625 | H14: 5 | I14: 1.125 | J14: 3.5625 | K14: 1.4375 | L14: 2.875
B15: 3 | C15: 0.1875 | D15: 17.25 | E15: 0.5625 | F15: 7.8125 | G15: 0.75 | H15: 6 | I15: 1.3125 | J15: 4.25 | K15: 1.6875 | L15: 3.4375
B16: 3.5 | C16: 0.25 | D16: 20.125 | E16: 0.6875 | F16: 9.125 | G16: 0.875 | H16: 7 | I16: 1.5625 | J16: 4.9375 | K16: 2 | L16: 4.0625
B17: 4 | C17: 0.25 | D17: 23.0625 | E17: 0.75 | F17: 10.4375 | G17: 1 | H17: 8 | I17: 1.75 | J17: 5.6875 | K17: 2.25 | L17: 4.625
B18: 4.5 | C18: 0.3125 | D18: 25.9375 | E18: 0.875 | F18: 11.75 | G18: 1.125 | H18: 9 | I18: 2 | J18: 6.375 | K18: 2.5625 | L18: 5.1875
B19: 5 | C19: 0.3125 | D19: 28.8125 | E19: 0.9375 | F19: 13.0625 | G19: 1.25 | H19: 10 | I19: 2.1875 | J19: 7.0625 | K19: 2.8125 | L19: 5.75
B20: 5.5 | C20: 0.375 | D20: 31.6875 | E20: 1.0625 | F20: 14.375 | G20: 1.375 | H20: 11 | I20: 2.4375 | J20: 7.75 | K20: 3.125 | L20: 6.375
B21: 6 | C21: 0.375 | D21: 34.5625 | E21: 1.125 | F21: 15.6875 | G21: 1.5 | H21: 12 | I21: 2.625 | J21: 8.5 | K21: 3.375 | L21: 6.9375
B22: 6.5 | C22: 0.4375 | D22: 37.4375 | E22: 1.25 | F22: 17 | G22: 1.625 | H22: 13 | I22: 2.875 | J22: 9.1875 | K22: 3.6875 | L22: 7.5
B23: 7 | C23: 0.4375 | D23: 40.3125 | E23: 1.3125 | F23: 18.3125 | G23: 1.75 | H23: 14 | I23: 3.0625 | J23: 9.875 | K23: 3.9375 | L23: 8.0625
B24: 7.5 | C24: 0.5 | D24: 43.1875 | E24: 1.4375 | F24: 19.625 | G24: 1.875 | H24: 15 | I24: 3.3125 | J24: 10.625 | K24: 4.25 | L24: 8.6875
B25: 8 | C25: 0.5 | D25: 46.0625 | E25: 1.5 | F25: 20.875 | G25: 2 | H25: 16 | I25: 3.5 | J25: 11.3125 | K25: 4.5 | L25: 9.25
B26: 8.5 | C26: 0.5625 | D26: 48.9375 | E26: 1.625 | F26: 22.1875 | G26: 2.125 | H26: 17 | I26: 3.75 | J26: 12 | K26: 4.8125 | L26: 9.8125
B27: 9 | C27: 0.5625 | D27: 51.8125 | E27: 1.6875 | F27: 23.5 | G27: 2.25 | H27: 18 | I27: 3.9375 | J27: 12.75 | K27: 5.0625 | L27: 10.375
B28: 9.5 | C28: 0.625 | D28: 54.6875 | E28: 1.8125 | F28: 24.8125 | G28: 2.375 | H28: 19 | I28: 4.1875 | J28: 13.4375 | K28: 5.375 | L28: 11
B29: 10 | C29: 0.625 | D29: 57.5625 | E29: 1.875 | F29: 26.125 | G29: 2.5 | H29: 20 | I29: 4.375 | J29: 14.125 | K29: 5.625 | L29: 11.5625
B30: 11 | C30: 0.6875 | D30: 63.375 | E30: 2.0625 | F30: 28.75 | G30: 2.75 | H30: 22 | I30: 4.8125 | J30: 15.5625 | K30: 6.1875 | L30: 12.6875
B31: 12 | C31: 0.75 | D31: 69.125 | E31: 2.25 | F31: 31.375 | G31: 3 | H31: 24 | I31: 5.25 | J31: 17 | K31: 6.75 | L31: 13.875
B32: 13 | C32: 0.8125 | D32: 74.875 | E32: 2.4375 | F32: 34 | G32: 3.25 | H32: 26 | I32: 5.6875 | J32: 18.375 | K32: 7.3125 | L32: 15
B33: 14 | C33: 0.875 | D33: 80.625 | E33: 2.625 | F33: 36.5625 | G33: 3.5 | H33: 28 | I33: 6.125 | J33: 19.8125 | K33: 7.875 | L33: 16.1875
B34: 15 | C34: 0.9375 | D34: 86.375 | E34: 2.8125 | F34: 39.1875 | G34: 3.75 | H34: 30 | I34: 6.5625 | J34: 21.1875 | K34: 8.4375 | L34: 17.3125
B35: 16 | C35: 1 | D35: 92.125 | E35: 3 | F35: 41.8125 | G35: 4 | H35: 32 | I35: 7 | J35: 22.625 | K35: 9 | L35: 18.5
B36: 17 | C36: 1.0625 | D36: 97.875 | E36: 3.1875 | F36: 44.4375 | G36: 4.25 | H36: 34 | I36: 7.4375 | J36: 24.0625 | K36: 9.5625 | L36: 19.625
B37: 18 | C37: 1.125 | D37: 103.6875 | E37: 3.375 | F37: 47.0625 | G37: 4.5 | H37: 36 | I37: 7.875 | J37: 25.4375 | K37: 10.125 | L37: 20.8125
B38: 19 | C38: 1.1875 | D38: 109.4375 | E38: 3.5625 | F38: 49.625 | G38: 4.75 | H38: 38 | I38: 8.3125 | J38: 26.875 | K38: 10.6875 | L38: 21.9375
B39: 20 | C39: 1.25 | D39: 115.1875 | E39: 3.75 | F39: 52.25 | G39: 5 | H39: 40 | I39: 8.75 | J39: 28.3125 | K39: 11.25 | L39: 23.125
B40: 21 | C40: 1.3125 | D40: 120.9375 | E40: 3.9375 | F40: 54.875 | G40: 5.25 | H40: 42 | I40: 9.1875 | J40: 29.6875 | K40: 11.8125 | L40: 24.25
B41: 22 | C41: 1.375 | D41: 126.6875 | E41: 4.125 | F41: 57.5 | G41: 5.5 | H41: 44 | I41: 9.625 | J41: 31.125 | K41: 12.375 | L41: 25.375
B42: 23 | C42: 1.4375 | D42: 132.4375 | E42: 4.3125 | F42: 60.125 | G42: 5.75 | H42: 46 | I42: 10.0625 | J42: 32.5 | K42: 12.9375 | L42: 26.5625
B43: 24 | C43: 1.5 | D43: 138.1875 | E43: 4.5 | F43: 62.6875 | G43: 6 | H43: 48 | I43: 10.5 | J43: 33.9375 | K43: 13.5 | L43: 27.6875
B44: 25 | C44: 1.5625 | D44: 144 | E44: 4.6875 | F44: 65.3125 | G44: 6.25 | H44: 50 | I44: 10.9375 | J44: 35.375 | K44: 14.0625 | L44: 28.875

Sheet BendRadiusVersion
A1: FROM: | B1: Mark Biegert
A2: SUBJECT: | B2: Detailed Model
A3: DATE: | B3: 2018-01-18 | E3: NA means that this angle offset combination is not possible.
E4: A shallower angle should be used. The combination is not possible
B5: Bend Radius | C5: 4 | D5: in | E5: because the bend radius is so large so as to preclude a straight section.
C7: Angle
C8: 10 | F8: 22.5 | I8: 30 | L8: 45 | O8: 60
C9: =C8 -> 10 | D9: =C8 -> 10 | E9: =C8 -> 10 | F9: =F8 -> 22.5 | G9: =F8 -> 22.5 | H9: =F8 -> 22.5 | I9: =I8 -> 30 | J9: =I8 -> 30 | K9: =I8 -> 30 | L9: =L8 -> 45 | M9: =L8 -> 45 | N9: =L8 -> 45 | O9: =O8 -> 60 | P9: =O8 -> 60 | Q9: =O8 -> 60
B10: Bend Offset | C10: Shrinkage | D10: Straight Length | E10: C-to-C Bend Dist | F10: Shrinkage | G10: Straight Length | H10: C-to-C Bend Dist | I10: Shrinkage | J10: Straight Length | K10: C-to-C Bend Dist | L10: Shrinkage | M10: Straight Length | N10: C-to-C Bend Dist | O10: Shrinkage | P10: Straight Length | Q10: C-to-C Bend Dist
B11: 0.5 | C11: =MROUND(($B11-4*_R)*TAN(C$9*PI()/360)+2*_R*C$9*PI()/180,1/16) -> 0.0625 | D11: =MROUND(($B11-2*_R*(1-COS(D$9*PI()/180)))*_xlfn.CSC(D$9*PI()/180),1/16) -> 2.1875 | E11: =MROUND(($B11-2*_R*(1-COS(E$9*PI()/180)))*_xlfn.CSC(E$9*PI()/180)+_R*E$9*PI()/180,1/16) -> 2.875 | F11: =MROUND(($B11-4*_R)*TAN(F$9*PI()/360)+2*_R*F$9*PI()/180,1/16*SIGN(($B11-4*_R)*TAN(F$9*PI()/360)+2*_R*F$9*PI()/180)) -> 0.0625 | G11: =MROUND(($B11-2*_R*(1-COS(G$9*PI()/180)))*_xlfn.CSC(G$9*PI()/180),1/16*SIGN(($B11-2*_R*(1-COS(G$9*PI()/180)))*_xlfn.CSC(G$9*PI()/180))) -> -0.3125 | H11: =MROUND(($B11-2*_R*(1-COS(H$9*PI()/180)))*_xlfn.CSC(H$9*PI()/180)+_R*H$9*PI()/180,1/16*SIGN(($B11-2*_R*(1-COS(H$9*PI()/180)))*_xlfn.CSC(H$9*PI()/180)+_R*H$9*PI()/180)) -> 1.3125 | I11: =MROUND(($B11-4*_R)*TAN(I$9*PI()/360)+2*_R*I$9*PI()/180,1/16*SIGN(($B11-4*_R)*TAN(I$9*PI()/360)+2*_R*I$9*PI()/180)) -> 0.0625 | J11: =MROUND(($B11-2*_R*(1-COS(J$9*PI()/180)))*_xlfn.CSC(J$9*PI()/180),1/16*SIGN(($B11-2*_R*(1-COS(J$9*PI()/180)))*_xlfn.CSC(J$9*PI()/180))) -> -1.125 | K11: =MROUND(($B11-2*_R*(1-COS(K$9*PI()/180)))*_xlfn.CSC(K$9*PI()/180)+_R*K$9*PI()/180,1/16*SIGN(($B11-2*_R*(1-COS(K$9*PI()/180)))*_xlfn.CSC(K$9*PI()/180)+_R*K$9*PI()/180)) -> 0.9375 | L11: =MROUND(($B11-4*_R)*TAN(L$9*PI()/360)+2*_R*L$9*PI()/180,1/16*SIGN(($B11-4*_R)*TAN(L$9*PI()/360)+2*_R*L$9*PI()/180)) -> -0.125 | M11: =MROUND(($B11-2*_R*(1-COS(M$9*PI()/180)))*_xlfn.CSC(M$9*PI()/180),1/16*SIGN(($B11-2*_R*(1-COS(M$9*PI()/180)))*_xlfn.CSC(M$9*PI()/180))) -> -2.625 | N11: =MROUND(($B11-2*_R*(1-COS(N$9*PI()/180)))*_xlfn.CSC(N$9*PI()/180)+_R*N$9*PI()/180,1/16*SIGN(($B11-2*_R*(1-COS(N$9*PI()/180)))*_xlfn.CSC(N$9*PI()/180)+_R*N$9*PI()/180)) -> 0.5625 | O11: =MROUND(($B11-4*_R)*TAN(O$9*PI()/360)+2*_R*O$9*PI()/180,1/16*SIGN(($B11-4*_R)*TAN(O$9*PI()/360)+2*_R*O$9*PI()/180)) -> -0.5625 | P11: =MROUND(($B11-2*_R*(1-COS(P$9*PI()/180)))*_xlfn.CSC(P$9*PI()/180),1/16*SIGN(($B11-2*_R*(1-COS(P$9*PI()/180)))*_xlfn.CSC(P$9*PI()/180))) -> -4.0625 | Q11: =MROUND(($B11-2*_R*(1-COS(Q$9*PI()/180)))*_xlfn.CSC(Q$9*PI()/180)+_R*Q$9*PI()/180,1/16*SIGN(($B11-2*_R*(1-COS(Q$9*PI()/180)))*_xlfn.CSC(Q$9*PI()/180)+_R*Q$9*PI()/180)) -> 0.125
B12: 1 | C12: 0.0625 | D12: 5.0625 | E12: 5.75 | F12: 0.1875 | G12: 1 | H12: 2.5625 | I12: 0.1875 | J12: -0.125 | K12: 1.9375 | L12: =MROUND(($B12-4*_R)*TAN(L$9*PI()/360)+2*_R*L$9*PI()/180,1/16*SIGN(($B12-4*_R)*TAN(L$9*PI()/360)+2*_R*L$9*PI()/180)) -> 0.0625 | M12: =MROUND(($B12-2*_R*(1-COS(M$9*PI()/180)))*_xlfn.CSC(M$9*PI()/180),1/16*SIGN(($B12-2*_R*(1-COS(M$9*PI()/180)))*_xlfn.CSC(M$9*PI()/180))) -> -1.875 | N12: =MROUND(($B12-2*_R*(1-COS(N$9*PI()/180)))*_xlfn.CSC(N$9*PI()/180)+_R*N$9*PI()/180,1/16*SIGN(($B12-2*_R*(1-COS(N$9*PI()/180)))*_xlfn.CSC(N$9*PI()/180)+_R*N$9*PI()/180)) -> 1.25 | O12: =MROUND(($B12-4*_R)*TAN(O$9*PI()/360)+2*_R*O$9*PI()/180,1/16*SIGN(($B12-4*_R)*TAN(O$9*PI()/360)+2*_R*O$9*PI()/180)) -> -0.3125 | P12: =MROUND(($B12-2*_R*(1-COS(P$9*PI()/180)))*_xlfn.CSC(P$9*PI()/180),1/16*SIGN(($B12-2*_R*(1-COS(P$9*PI()/180)))*_xlfn.CSC(P$9*PI()/180))) -> -3.4375 | Q12: =MROUND(($B12-2*_R*(1-COS(Q$9*PI()/180)))*_xlfn.CSC(Q$9*PI()/180)+_R*Q$9*PI()/180,1/16*SIGN(($B12-2*_R*(1-COS(Q$9*PI()/180)))*_xlfn.CSC(Q$9*PI()/180)+_R*Q$9*PI()/180)) -> 0.75
B13: 1.5 | C13: 0.125 | D13: 7.9375 | E13: 8.625 | F13: 0.25 | G13: 2.3125 | H13: 3.875 | I13: 0.3125 | J13: 0.875 | K13: 2.9375 | L13: =MROUND(($B13-4*_R)*TAN(L$9*PI()/360)+2*_R*L$9*PI()/180,1/16*SIGN(($B13-4*_R)*TAN(L$9*PI()/360)+2*_R*L$9*PI()/180)) -> 0.25 | M13: =MROUND(($B13-2*_R*(1-COS(M$9*PI()/180)))*_xlfn.CSC(M$9*PI()/180),1/16*SIGN(($B13-2*_R*(1-COS(M$9*PI()/180)))*_xlfn.CSC(M$9*PI()/180))) -> -1.1875 | N13: =MROUND(($B13-2*_R*(1-COS(N$9*PI()/180)))*_xlfn.CSC(N$9*PI()/180)+_R*N$9*PI()/180,1/16*SIGN(($B13-2*_R*(1-COS(N$9*PI()/180)))*_xlfn.CSC(N$9*PI()/180)+_R*N$9*PI()/180)) -> 1.9375 | O13: =MROUND(($B13-4*_R)*TAN(O$9*PI()/360)+2*_R*O$9*PI()/180,1/16*SIGN(($B13-4*_R)*TAN(O$9*PI()/360)+2*_R*O$9*PI()/180)) -> 0 | P13: =MROUND(($B13-2*_R*(1-COS(P$9*PI()/180)))*_xlfn.CSC(P$9*PI()/180),1/16*SIGN(($B13-2*_R*(1-COS(P$9*PI()/180)))*_xlfn.CSC(P$9*PI()/180))) -> -2.875 | Q13: =MROUND(($B13-2*_R*(1-COS(Q$9*PI()/180)))*_xlfn.CSC(Q$9*PI()/180)+_R*Q$9*PI()/180,1/16*SIGN(($B13-2*_R*(1-COS(Q$9*PI()/180)))*_xlfn.CSC(Q$9*PI()/180)+_R*Q$9*PI()/180)) -> 1.3125
B14: 2 | C14: 0.1875 | D14: 10.8125 | E14: 11.5 | F14: 0.375 | G14: 3.625 | H14: 5.1875 | I14: 0.4375 | J14: 1.875 | K14: 3.9375 | L14: =MROUND(($B14-4*_R)*TAN(L$9*PI()/360)+2*_R*L$9*PI()/180,1/16*SIGN(($B14-4*_R)*TAN(L$9*PI()/360)+2*_R*L$9*PI()/180)) -> 0.5 | M14: =MROUND(($B14-2*_R*(1-COS(M$9*PI()/180)))*_xlfn.CSC(M$9*PI()/180),1/16*SIGN(($B14-2*_R*(1-COS(M$9*PI()/180)))*_xlfn.CSC(M$9*PI()/180))) -> -0.5 | N14: =MROUND(($B14-2*_R*(1-COS(N$9*PI()/180)))*_xlfn.CSC(N$9*PI()/180)+_R*N$9*PI()/180,1/16*SIGN(($B14-2*_R*(1-COS(N$9*PI()/180)))*_xlfn.CSC(N$9*PI()/180)+_R*N$9*PI()/180)) -> 2.6875 | O14: =MROUND(($B14-4*_R)*TAN(O$9*PI()/360)+2*_R*O$9*PI()/180,1/16*SIGN(($B14-4*_R)*TAN(O$9*PI()/360)+2*_R*O$9*PI()/180)) -> 0.3125 | P14: =MROUND(($B14-2*_R*(1-COS(P$9*PI()/180)))*_xlfn.CSC(P$9*PI()/180),1/16*SIGN(($B14-2*_R*(1-COS(P$9*PI()/180)))*_xlfn.CSC(P$9*PI()/180))) -> -2.3125 | Q14: =MROUND(($B14-2*_R*(1-COS(Q$9*PI()/180)))*_xlfn.CSC(Q$9*PI()/180)+_R*Q$9*PI()/180,1/16*SIGN(($B14-2*_R*(1-COS(Q$9*PI()/180)))*_xlfn.CSC(Q$9*PI()/180)+_R*Q$9*PI()/180)) -> 1.875
B15: 2.5 | C15: 0.1875 | D15: 13.6875 | E15: 14.375 | F15: 0.4375 | G15: 4.9375 | H15: 6.5 | I15: 0.5625 | J15: 2.875 | K15: 4.9375 | L15: =MROUND(($B15-4*_R)*TAN(L$9*PI()/360)+2*_R*L$9*PI()/180,1/16*SIGN(($B15-4*_R)*TAN(L$9*PI()/360)+2*_R*L$9*PI()/180)) -> 0.6875 | M15: =MROUND(($B15-2*_R*(1-COS(M$9*PI()/180)))*_xlfn.CSC(M$9*PI()/180),1/16*SIGN(($B15-2*_R*(1-COS(M$9*PI()/180)))*_xlfn.CSC(M$9*PI()/180))) -> 0.25 | N15: =MROUND(($B15-2*_R*(1-COS(N$9*PI()/180)))*_xlfn.CSC(N$9*PI()/180)+_R*N$9*PI()/180,1/16*SIGN(($B15-2*_R*(1-COS(N$9*PI()/180)))*_xlfn.CSC(N$9*PI()/180)+_R*N$9*PI()/180)) -> 3.375 | O15: =MROUND(($B15-4*_R)*TAN(O$9*PI()/360)+2*_R*O$9*PI()/180,1/16*SIGN(($B15-4*_R)*TAN(O$9*PI()/360)+2*_R*O$9*PI()/180)) -> 0.5625 | P15: =MROUND(($B15-2*_R*(1-COS(P$9*PI()/180)))*_xlfn.CSC(P$9*PI()/180),1/16*SIGN(($B15-2*_R*(1-COS(P$9*PI()/180)))*_xlfn.CSC(P$9*PI()/180))) -> -1.75 | Q15: =MROUND(($B15-2*_R*(1-COS(Q$9*PI()/180)))*_xlfn.CSC(Q$9*PI()/180)+_R*Q$9*PI()/180,1/16*SIGN(($B15-2*_R*(1-COS(Q$9*PI()/180)))*_xlfn.CSC(Q$9*PI()/180)+_R*Q$9*PI()/180)) -> 2.4375
B16: 3 | C16: 0.25 | D16: 16.5625 | E16: 17.25 | F16: 0.5625 | G16: 6.25 | H16: 7.8125 | I16: 0.6875 | J16: 3.875 | K16: 5.9375 | L16: =MROUND(($B16-4*_R)*TAN(L$9*PI()/360)+2*_R*L$9*PI()/180,1/16*SIGN(($B16-4*_R)*TAN(L$9*PI()/360)+2*_R*L$9*PI()/180)) -> 0.875 | M16: =MROUND(($B16-2*_R*(1-COS(M$9*PI()/180)))*_xlfn.CSC(M$9*PI()/180),1/16*SIGN(($B16-2*_R*(1-COS(M$9*PI()/180)))*_xlfn.CSC(M$9*PI()/180))) -> 0.9375 | N16: =MROUND(($B16-2*_R*(1-COS(N$9*PI()/180)))*_xlfn.CSC(N$9*PI()/180)+_R*N$9*PI()/180,1/16*SIGN(($B16-2*_R*(1-COS(N$9*PI()/180)))*_xlfn.CSC(N$9*PI()/180)+_R*N$9*PI()/180)) -> 4.0625 | O16: =MROUND(($B16-4*_R)*TAN(O$9*PI()/360)+2*_R*O$9*PI()/180,1/16*SIGN(($B16-4*_R)*TAN(O$9*PI()/360)+2*_R*O$9*PI()/180)) -> 0.875 | P16: =MROUND(($B16-2*_R*(1-COS(P$9*PI()/180)))*_xlfn.CSC(P$9*PI()/180),1/16*SIGN(($B16-2*_R*(1-COS(P$9*PI()/180)))*_xlfn.CSC(P$9*PI()/180))) -> -1.125 | Q16: =MROUND(($B16-2*_R*(1-COS(Q$9*PI()/180)))*_xlfn.CSC(Q$9*PI()/180)+_R*Q$9*PI()/180,1/16*SIGN(($B16-2*_R*(1-COS(Q$9*PI()/180)))*_xlfn.CSC(Q$9*PI()/180)+_R*Q$9*PI()/180)) -> 3.0625
B17: 3.5 | C17: 0.3125 | D17: 19.4375 | E17: 20.125 | F17: 0.625 | G17: 7.5625 | H17: 9.125 | I17: 0.8125 | J17: 4.875 | K17: 6.9375 | L17: =MROUND(($B17-4*_R)*TAN(L$9*PI()/360)+2*_R*L$9*PI()/180,1/16*SIGN(($B17-4*_R)*TAN(L$9*PI()/360)+2*_R*L$9*PI()/180)) -> 1.125 | M17: =MROUND(($B17-2*_R*(1-COS(M$9*PI()/180)))*_xlfn.CSC(M$9*PI()/180),1/16*SIGN(($B17-2*_R*(1-COS(M$9*PI()/180)))*_xlfn.CSC(M$9*PI()/180))) -> 1.625 | N17: =MROUND(($B17-2*_R*(1-COS(N$9*PI()/180)))*_xlfn.CSC(N$9*PI()/180)+_R*N$9*PI()/180,1/16*SIGN(($B17-2*_R*(1-COS(N$9*PI()/180)))*_xlfn.CSC(N$9*PI()/180)+_R*N$9*PI()/180)) -> 4.75 | O17: =MROUND(($B17-4*_R)*TAN(O$9*PI()/360)+2*_R*O$9*PI()/180,1/16*SIGN(($B17-4*_R)*TAN(O$9*PI()/360)+2*_R*O$9*PI()/180)) -> 1.1875 | P17: =MROUND(($B17-2*_R*(1-COS(P$9*PI()/180)))*_xlfn.CSC(P$9*PI()/180),1/16*SIGN(($B17-2*_R*(1-COS(P$9*PI()/180)))*_xlfn.CSC(P$9*PI()/180))) -> -0.5625 | Q17: =MROUND(($B17-2*_R*(1-COS(Q$9*PI()/180)))*_xlfn.CSC(Q$9*PI()/180)+_R*Q$9*PI()/180,1/16*SIGN(($B17-2*_R*(1-COS(Q$9*PI()/180)))*_xlfn.CSC(Q$9*PI()/180)+_R*Q$9*PI()/180)) -> 3.625
B18: 4 | C18: 0.375 | D18: 22.3125 | E18: 23.0625 | F18: 0.75 | G18: 8.875 | H18: 10.4375 | I18: 1 | J18: 5.875 | K18: 7.9375 | L18: =MROUND(($B18-4*_R)*TAN(L$9*PI()/360)+2*_R*L$9*PI()/180,1/16*SIGN(($B18-4*_R)*TAN(L$9*PI()/360)+2*_R*L$9*PI()/180)) -> 1.3125 | M18: =MROUND(($B18-2*_R*(1-COS(M$9*PI()/180)))*_xlfn.CSC(M$9*PI()/180),1/16*SIGN(($B18-2*_R*(1-COS(M$9*PI()/180)))*_xlfn.CSC(M$9*PI()/180))) -> 2.3125 | N18: =MROUND(($B18-2*_R*(1-COS(N$9*PI()/180)))*_xlfn.CSC(N$9*PI()/180)+_R*N$9*PI()/180,1/16*SIGN(($B18-2*_R*(1-COS(N$9*PI()/180)))*_xlfn.CSC(N$9*PI()/180)+_R*N$9*PI()/180)) -> 5.5 | O18: =MROUND(($B18-4*_R)*TAN(O$9*PI()/360)+2*_R*O$9*PI()/180,1/16*SIGN(($B18-4*_R)*TAN(O$9*PI()/360)+2*_R*O$9*PI()/180)) -> 1.4375 | P18: =MROUND(($B18-2*_R*(1-COS(P$9*PI()/180)))*_xlfn.CSC(P$9*PI()/180),1/16*SIGN(($B18-2*_R*(1-COS(P$9*PI()/180)))*_xlfn.CSC(P$9*PI()/180))) -> 0 | Q18: =MROUND(($B18-2*_R*(1-COS(Q$9*PI()/180)))*_xlfn.CSC(Q$9*PI()/180)+_R*Q$9*PI()/180,1/16*SIGN(($B18-2*_R*(1-COS(Q$9*PI()/180)))*_xlfn.CSC(Q$9*PI()/180)+_R*Q$9*PI()/180)) -> 4.1875
B19: 4.5 | C19: 0.375 | D19: 25.1875 | E19: 25.9375 | F19: 0.875 | G19: 10.1875 | H19: 11.75 | I19: 1.125 | J19: 6.875 | K19: 8.9375 | L19: =MROUND(($B19-4*_R)*TAN(L$9*PI()/360)+2*_R*L$9*PI()/180,1/16*SIGN(($B19-4*_R)*TAN(L$9*PI()/360)+2*_R*L$9*PI()/180)) -> 1.5 | M19: =MROUND(($B19-2*_R*(1-COS(M$9*PI()/180)))*_xlfn.CSC(M$9*PI()/180),1/16*SIGN(($B19-2*_R*(1-COS(M$9*PI()/180)))*_xlfn.CSC(M$9*PI()/180))) -> 3.0625 | N19: =MROUND(($B19-2*_R*(1-COS(N$9*PI()/180)))*_xlfn.CSC(N$9*PI()/180)+_R*N$9*PI()/180,1/16*SIGN(($B19-2*_R*(1-COS(N$9*PI()/180)))*_xlfn.CSC(N$9*PI()/180)+_R*N$9*PI()/180)) -> 6.1875 | O19: =MROUND(($B19-4*_R)*TAN(O$9*PI()/360)+2*_R*O$9*PI()/180,1/16*SIGN(($B19-4*_R)*TAN(O$9*PI()/360)+2*_R*O$9*PI()/180)) -> 1.75 | P19: =MROUND(($B19-2*_R*(1-COS(P$9*PI()/180)))*_xlfn.CSC(P$9*PI()/180),1/16*SIGN(($B19-2*_R*(1-COS(P$9*PI()/180)))*_xlfn.CSC(P$9*PI()/180))) -> 0.5625 | Q19: =MROUND(($B19-2*_R*(1-COS(Q$9*PI()/180)))*_xlfn.CSC(Q$9*PI()/180)+_R*Q$9*PI()/180,1/16*SIGN(($B19-2*_R*(1-COS(Q$9*PI()/180)))*_xlfn.CSC(Q$9*PI()/180)+_R*Q$9*PI()/180)) -> 4.75
B20: 5 | C20: 0.4375 | D20: 28.125 | E20: 28.8125 | F20: 0.9375 | G20: 11.5 | H20: 13.0625 | I20: 1.25 | J20: 7.875 | K20: 9.9375 | L20: =MROUND(($B20-4*_R)*TAN(L$9*PI()/360)+2*_R*L$9*PI()/180,1/16*SIGN(($B20-4*_R)*TAN(L$9*PI()/360)+2*_R*L$9*PI()/180)) -> 1.75 | M20: =MROUND(($B20-2*_R*(1-COS(M$9*PI()/180)))*_xlfn.CSC(M$9*PI()/180),1/16*SIGN(($B20-2*_R*(1-COS(M$9*PI()/180)))*_xlfn.CSC(M$9*PI()/180))) -> 3.75 | N20: =MROUND(($B20-2*_R*(1-COS(N$9*PI()/180)))*_xlfn.CSC(N$9*PI()/180)+_R*N$9*PI()/180,1/16*SIGN(($B20-2*_R*(1-COS(N$9*PI()/180)))*_xlfn.CSC(N$9*PI()/180)+_R*N$9*PI()/180)) -> 6.875 | O20: =MROUND(($B20-4*_R)*TAN(O$9*PI()/360)+2*_R*O$9*PI()/180,1/16*SIGN(($B20-4*_R)*TAN(O$9*PI()/360)+2*_R*O$9*PI()/180)) -> 2 | P20: =MROUND(($B20-2*_R*(1-COS(P$9*PI()/180)))*_xlfn.CSC(P$9*PI()/180),1/16*SIGN(($B20-2*_R*(1-COS(P$9*PI()/180)))*_xlfn.CSC(P$9*PI()/180))) -> 1.125 | Q20: =MROUND(($B20-2*_R*(1-COS(Q$9*PI()/180)))*_xlfn.CSC(Q$9*PI()/180)+_R*Q$9*PI()/180,1/16*SIGN(($B20-2*_R*(1-COS(Q$9*PI()/180)))*_xlfn.CSC(Q$9*PI()/180)+_R*Q$9*PI()/180)) -> 5.3125
B21: 5.5 | C21: 0.5 | D21: 31 | E21: 31.6875 | F21: 1.0625 | G21: 12.75 | H21: 14.375 | I21: 1.375 | J21: 8.875 | K21: 10.9375 | L21: =MROUND(($B21-4*_R)*TAN(L$9*PI()/360)+2*_R*L$9*PI()/180,1/16*SIGN(($B21-4*_R)*TAN(L$9*PI()/360)+2*_R*L$9*PI()/180)) -> 1.9375 | M21: =MROUND(($B21-2*_R*(1-COS(M$9*PI()/180)))*_xlfn.CSC(M$9*PI()/180),1/16*SIGN(($B21-2*_R*(1-COS(M$9*PI()/180)))*_xlfn.CSC(M$9*PI()/180))) -> 4.4375 | N21: =MROUND(($B21-2*_R*(1-COS(N$9*PI()/180)))*_xlfn.CSC(N$9*PI()/180)+_R*N$9*PI()/180,1/16*SIGN(($B21-2*_R*(1-COS(N$9*PI()/180)))*_xlfn.CSC(N$9*PI()/180)+_R*N$9*PI()/180)) -> 7.625 | O21: =MROUND(($B21-4*_R)*TAN(O$9*PI()/360)+2*_R*O$9*PI()/180,1/16*SIGN(($B21-4*_R)*TAN(O$9*PI()/360)+2*_R*O$9*PI()/180)) -> 2.3125 | P21: =MROUND(($B21-2*_R*(1-COS(P$9*PI()/180)))*_xlfn.CSC(P$9*PI()/180),1/16*SIGN(($B21-2*_R*(1-COS(P$9*PI()/180)))*_xlfn.CSC(P$9*PI()/180))) -> 1.75 | Q21: =MROUND(($B21-2*_R*(1-COS(Q$9*PI()/180)))*_xlfn.CSC(Q$9*PI()/180)+_R*Q$9*PI()/180,1/16*SIGN(($B21-2*_R*(1-COS(Q$9*PI()/180)))*_xlfn.CSC(Q$9*PI()/180)+_R*Q$9*PI()/180)) -> 5.9375
B22: 6 | C22: 0.5 | D22: 33.875 | E22: 34.5625 | F22: 1.125 | G22: 14.0625 | H22: 15.6875 | I22: 1.5 | J22: 9.875 | K22: 11.9375 | L22: =MROUND(($B22-4*_R)*TAN(L$9*PI()/360)+2*_R*L$9*PI()/180,1/16*SIGN(($B22-4*_R)*TAN(L$9*PI()/360)+2*_R*L$9*PI()/180)) -> 2.125 | M22: =MROUND(($B22-2*_R*(1-COS(M$9*PI()/180)))*_xlfn.CSC(M$9*PI()/180),1/16*SIGN(($B22-2*_R*(1-COS(M$9*PI()/180)))*_xlfn.CSC(M$9*PI()/180))) -> 5.1875 | N22: =MROUND(($B22-2*_R*(1-COS(N$9*PI()/180)))*_xlfn.CSC(N$9*PI()/180)+_R*N$9*PI()/180,1/16*SIGN(($B22-2*_R*(1-COS(N$9*PI()/180)))*_xlfn.CSC(N$9*PI()/180)+_R*N$9*PI()/180)) -> 8.3125 | O22: =MROUND(($B22-4*_R)*TAN(O$9*PI()/360)+2*_R*O$9*PI()/180,1/16*SIGN(($B22-4*_R)*TAN(O$9*PI()/360)+2*_R*O$9*PI()/180)) -> 2.625 | P22: =MROUND(($B22-2*_R*(1-COS(P$9*PI()/180)))*_xlfn.CSC(P$9*PI()/180),1/16*SIGN(($B22-2*_R*(1-COS(P$9*PI()/180)))*_xlfn.CSC(P$9*PI()/180))) -> 2.3125 | Q22: =MROUND(($B22-2*_R*(1-COS(Q$9*PI()/180)))*_xlfn.CSC(Q$9*PI()/180)+_R*Q$9*PI()/180,1/16*SIGN(($B22-2*_R*(1-COS(Q$9*PI()/180)))*_xlfn.CSC(Q$9*PI()/180)+_R*Q$9*PI()/180)) -> 6.5
B23: 6.5 | C23: 0.5625 | D23: 36.75 | E23: 37.4375 | F23: 1.25 | G23: 15.375 | H23: 16.9375 | I23: 1.625 | J23: 10.875 | K23: 12.9375 | L23: =MROUND(($B23-4*_R)*TAN(L$9*PI()/360)+2*_R*L$9*PI()/180,1/16*SIGN(($B23-4*_R)*TAN(L$9*PI()/360)+2*_R*L$9*PI()/180)) -> 2.375 | M23: =MROUND(($B23-2*_R*(1-COS(M$9*PI()/180)))*_xlfn.CSC(M$9*PI()/180),1/16*SIGN(($B23-2*_R*(1-COS(M$9*PI()/180)))*_xlfn.CSC(M$9*PI()/180))) -> 5.875 | N23: =MROUND(($B23-2*_R*(1-COS(N$9*PI()/180)))*_xlfn.CSC(N$9*PI()/180)+_R*N$9*PI()/180,1/16*SIGN(($B23-2*_R*(1-COS(N$9*PI()/180)))*_xlfn.CSC(N$9*PI()/180)+_R*N$9*PI()/180)) -> 9 | O23: =MROUND(($B23-4*_R)*TAN(O$9*PI()/360)+2*_R*O$9*PI()/180,1/16*SIGN(($B23-4*_R)*TAN(O$9*PI()/360)+2*_R*O$9*PI()/180)) -> 2.875 | P23: =MROUND(($B23-2*_R*(1-COS(P$9*PI()/180)))*_xlfn.CSC(P$9*PI()/180),1/16*SIGN(($B23-2*_R*(1-COS(P$9*PI()/180)))*_xlfn.CSC(P$9*PI()/180))) -> 2.875 | Q23: =MROUND(($B23-2*_R*(1-COS(Q$9*PI()/180)))*_xlfn.CSC(Q$9*PI()/180)+_R*Q$9*PI()/180,1/16*SIGN(($B23-2*_R*(1-COS(Q$9*PI()/180)))*_xlfn.CSC(Q$9*PI()/180)+_R*Q$9*PI()/180)) -> 7.0625
B24: 7 | C24: 0.625 | D24: 39.625 | E24: 40.3125 | F24: 1.375 | G24: 16.6875 | H24: 18.25 | I24: 1.75 | J24: 11.875 | K24: 13.9375 | L24: =MROUND(($B24-4*_R)*TAN(L$9*PI()/360)+2*_R*L$9*PI()/180,1/16*SIGN(($B24-4*_R)*TAN(L$9*PI()/360)+2*_R*L$9*PI()/180)) -> 2.5625 | M24: =MROUND(($B24-2*_R*(1-COS(M$9*PI()/180)))*_xlfn.CSC(M$9*PI()/180),1/16*SIGN(($B24-2*_R*(1-COS(M$9*PI()/180)))*_xlfn.CSC(M$9*PI()/180))) -> 6.5625 | N24: =MROUND(($B24-2*_R*(1-COS(N$9*PI()/180)))*_xlfn.CSC(N$9*PI()/180)+_R*N$9*PI()/180,1/16*SIGN(($B24-2*_R*(1-COS(N$9*PI()/180)))*_xlfn.CSC(N$9*PI()/180)+_R*N$9*PI()/180)) -> 9.75 | O24: =MROUND(($B24-4*_R)*TAN(O$9*PI()/360)+2*_R*O$9*PI()/180,1/16*SIGN(($B24-4*_R)*TAN(O$9*PI()/360)+2*_R*O$9*PI()/180)) -> 3.1875 | P24: =MROUND(($B24-2*_R*(1-COS(P$9*PI()/180)))*_xlfn.CSC(P$9*PI()/180),1/16*SIGN(($B24-2*_R*(1-COS(P$9*PI()/180)))*_xlfn.CSC(P$9*PI()/180))) -> 3.4375 | Q24: =MROUND(($B24-2*_R*(1-COS(Q$9*PI()/180)))*_xlfn.CSC(Q$9*PI()/180)+_R*Q$9*PI()/180,1/16*SIGN(($B24-2*_R*(1-COS(Q$9*PI()/180)))*_xlfn.CSC(Q$9*PI()/180)+_R*Q$9*PI()/180)) -> 7.625
B25: 7.5 | C25: 0.625 | D25: 42.5 | E25: 43.1875 | F25: 1.4375 | G25: 18 | H25: 19.5625 | I25: 1.9375 | J25: 12.875 | K25: 14.9375 | L25: =MROUND(($B25-4*_R)*TAN(L$9*PI()/360)+2*_R*L$9*PI()/180,1/16*SIGN(($B25-4*_R)*TAN(L$9*PI()/360)+2*_R*L$9*PI()/180)) -> 2.75 | M25: =MROUND(($B25-2*_R*(1-COS(M$9*PI()/180)))*_xlfn.CSC(M$9*PI()/180),1/16*SIGN(($B25-2*_R*(1-COS(M$9*PI()/180)))*_xlfn.CSC(M$9*PI()/180))) -> 7.3125 | N25: =MROUND(($B25-2*_R*(1-COS(N$9*PI()/180)))*_xlfn.CSC(N$9*PI()/180)+_R*N$9*PI()/180,1/16*SIGN(($B25-2*_R*(1-COS(N$9*PI()/180)))*_xlfn.CSC(N$9*PI()/180)+_R*N$9*PI()/180)) -> 10.4375 | O25: =MROUND(($B25-4*_R)*TAN(O$9*PI()/360)+2*_R*O$9*PI()/180,1/16*SIGN(($B25-4*_R)*TAN(O$9*PI()/360)+2*_R*O$9*PI()/180)) -> 3.5 | P25: =MROUND(($B25-2*_R*(1-COS(P$9*PI()/180)))*_xlfn.CSC(P$9*PI()/180),1/16*SIGN(($B25-2*_R*(1-COS(P$9*PI()/180)))*_xlfn.CSC(P$9*PI()/180))) -> 4.0625 | Q25: =MROUND(($B25-2*_R*(1-COS(Q$9*PI()/180)))*_xlfn.CSC(Q$9*PI()/180)+_R*Q$9*PI()/180,1/16*SIGN(($B25-2*_R*(1-COS(Q$9*PI()/180)))*_xlfn.CSC(Q$9*PI()/180)+_R*Q$9*PI()/180)) -> 8.25
B26: 8 | C26: 0.6875 | D26: 45.375 | E26: 46.0625 | F26: 1.5625 | G26: 19.3125 | H26: 20.875 | I26: 2.0625 | J26: 13.875 | K26: 15.9375 | L26: =MROUND(($B26-4*_R)*TAN(L$9*PI()/360)+2*_R*L$9*PI()/180,1/16*SIGN(($B26-4*_R)*TAN(L$9*PI()/360)+2*_R*L$9*PI()/180)) -> 3 | M26: =MROUND(($B26-2*_R*(1-COS(M$9*PI()/180)))*_xlfn.CSC(M$9*PI()/180),1/16*SIGN(($B26-2*_R*(1-COS(M$9*PI()/180)))*_xlfn.CSC(M$9*PI()/180))) -> 8 | N26: =MROUND(($B26-2*_R*(1-COS(N$9*PI()/180)))*_xlfn.CSC(N$9*PI()/180)+_R*N$9*PI()/180,1/16*SIGN(($B26-2*_R*(1-COS(N$9*PI()/180)))*_xlfn.CSC(N$9*PI()/180)+_R*N$9*PI()/180)) -> 11.125 | O26: =MROUND(($B26-4*_R)*TAN(O$9*PI()/360)+2*_R*O$9*PI()/180,1/16*SIGN(($B26-4*_R)*TAN(O$9*PI()/360)+2*_R*O$9*PI()/180)) -> 3.75 | P26: =MROUND(($B26-2*_R*(1-COS(P$9*PI()/180)))*_xlfn.CSC(P$9*PI()/180),1/16*SIGN(($B26-2*_R*(1-COS(P$9*PI()/180)))*_xlfn.CSC(P$9*PI()/180))) -> 4.625 | Q26: =MROUND(($B26-2*_R*(1-COS(Q$9*PI()/180)))*_xlfn.CSC(Q$9*PI()/180)+_R*Q$9*PI()/180,1/16*SIGN(($B26-2*_R*(1-COS(Q$9*PI()/180)))*_xlfn.CSC(Q$9*PI()/180)+_R*Q$9*PI()/180)) -> 8.8125
B27: 8.5 | C27: 0.75 | D27: 48.25 | E27: 48.9375 | F27: 1.625 | G27: 20.625 | H27: 22.1875 | I27: 2.1875 | J27: 14.875 | K27: 16.9375 | L27: =MROUND(($B27-4*_R)*TAN(L$9*PI()/360)+2*_R*L$9*PI()/180,1/16*SIGN(($B27-4*_R)*TAN(L$9*PI()/360)+2*_R*L$9*PI()/180)) -> 3.1875 | M27: =MROUND(($B27-2*_R*(1-COS(M$9*PI()/180)))*_xlfn.CSC(M$9*PI()/180),1/16*SIGN(($B27-2*_R*(1-COS(M$9*PI()/180)))*_xlfn.CSC(M$9*PI()/180))) -> 8.6875 | N27: =MROUND(($B27-2*_R*(1-COS(N$9*PI()/180)))*_xlfn.CSC(N$9*PI()/180)+_R*N$9*PI()/180,1/16*SIGN(($B27-2*_R*(1-COS(N$9*PI()/180)))*_xlfn.CSC(N$9*PI()/180)+_R*N$9*PI()/180)) -> 11.875 | O27: =MROUND(($B27-4*_R)*TAN(O$9*PI()/360)+2*_R*O$9*PI()/180,1/16*SIGN(($B27-4*_R)*TAN(O$9*PI()/360)+2*_R*O$9*PI()/180)) -> 4.0625 | P27: =MROUND(($B27-2*_R*(1-COS(P$9*PI()/180)))*_xlfn.CSC(P$9*PI()/180),1/16*SIGN(($B27-2*_R*(1-COS(P$9*PI()/180)))*_xlfn.CSC(P$9*PI()/180))) -> 5.1875 | Q27: =MROUND(($B27-2*_R*(1-COS(Q$9*PI()/180)))*_xlfn.CSC(Q$9*PI()/180)+_R*Q$9*PI()/180,1/16*SIGN(($B27-2*_R*(1-COS(Q$9*PI()/180)))*_xlfn.CSC(Q$9*PI()/180)+_R*Q$9*PI()/180)) -> 9.375
B28: 9 | C28: 0.8125 | D28: 51.125 | E28: 51.8125 | F28: 1.75 | G28: 21.9375 | H28: 23.5 | I28: 2.3125 | J28: 15.875 | K28: 17.9375 | L28: =MROUND(($B28-4*_R)*TAN(L$9*PI()/360)+2*_R*L$9*PI()/180,1/16*SIGN(($B28-4*_R)*TAN(L$9*PI()/360)+2*_R*L$9*PI()/180)) -> 3.375 | M28: =MROUND(($B28-2*_R*(1-COS(M$9*PI()/180)))*_xlfn.CSC(M$9*PI()/180),1/16*SIGN(($B28-2*_R*(1-COS(M$9*PI()/180)))*_xlfn.CSC(M$9*PI()/180))) -> 9.4375 | N28: =MROUND(($B28-2*_R*(1-COS(N$9*PI()/180)))*_xlfn.CSC(N$9*PI()/180)+_R*N$9*PI()/180,1/16*SIGN(($B28-2*_R*(1-COS(N$9*PI()/180)))*_xlfn.CSC(N$9*PI()/180)+_R*N$9*PI()/180)) -> 12.5625 | O28: =MROUND(($B28-4*_R)*TAN(O$9*PI()/360)+2*_R*O$9*PI()/180,1/16*SIGN(($B28-4*_R)*TAN(O$9*PI()/360)+2*_R*O$9*PI()/180)) -> 4.3125 | P28: =MROUND(($B28-2*_R*(1-COS(P$9*PI()/180)))*_xlfn.CSC(P$9*PI()/180),1/16*SIGN(($B28-2*_R*(1-COS(P$9*PI()/180)))*_xlfn.CSC(P$9*PI()/180))) -> 5.75 | Q28: =MROUND(($B28-2*_R*(1-COS(Q$9*PI()/180)))*_xlfn.CSC(Q$9*PI()/180)+_R*Q$9*PI()/180,1/16*SIGN(($B28-2*_R*(1-COS(Q$9*PI()/180)))*_xlfn.CSC(Q$9*PI()/180)+_R*Q$9*PI()/180)) -> 9.9375
B29: 9.5 | C29: 0.8125 | D29: 54 | E29: 54.6875 | F29: 1.875 | G29: 23.25 | H29: 24.8125 | I29: 2.4375 | J29: 16.875 | K29: 18.9375 | L29: =MROUND(($B29-4*_R)*TAN(L$9*PI()/360)+2*_R*L$9*PI()/180,1/16*SIGN(($B29-4*_R)*TAN(L$9*PI()/360)+2*_R*L$9*PI()/180)) -> 3.5625 | M29: =MROUND(($B29-2*_R*(1-COS(M$9*PI()/180)))*_xlfn.CSC(M$9*PI()/180),1/16*SIGN(($B29-2*_R*(1-COS(M$9*PI()/180)))*_xlfn.CSC(M$9*PI()/180))) -> 10.125 | N29: =MROUND(($B29-2*_R*(1-COS(N$9*PI()/180)))*_xlfn.CSC(N$9*PI()/180)+_R*N$9*PI()/180,1/16*SIGN(($B29-2*_R*(1-COS(N$9*PI()/180)))*_xlfn.CSC(N$9*PI()/180)+_R*N$9*PI()/180)) -> 13.25 | O29: =MROUND(($B29-4*_R)*TAN(O$9*PI()/360)+2*_R*O$9*PI()/180,1/16*SIGN(($B29-4*_R)*TAN(O$9*PI()/360)+2*_R*O$9*PI()/180)) -> 4.625 | P29: =MROUND(($B29-2*_R*(1-COS(P$9*PI()/180)))*_xlfn.CSC(P$9*PI()/180),1/16*SIGN(($B29-2*_R*(1-COS(P$9*PI()/180)))*_xlfn.CSC(P$9*PI()/180))) -> 6.375 | Q29: =MROUND(($B29-2*_R*(1-COS(Q$9*PI()/180)))*_xlfn.CSC(Q$9*PI()/180)+_R*Q$9*PI()/180,1/16*SIGN(($B29-2*_R*(1-COS(Q$9*PI()/180)))*_xlfn.CSC(Q$9*PI()/180)+_R*Q$9*PI()/180)) -> 10.5625
B30: 10 | C30: 0.875 | D30: 56.875 | E30: 57.5625 | F30: 1.9375 | G30: 24.5625 | H30: 26.125 | I30: 2.5625 | J30: 17.875 | K30: 19.9375 | L30: =MROUND(($B30-4*_R)*TAN(L$9*PI()/360)+2*_R*L$9*PI()/180,1/16*SIGN(($B30-4*_R)*TAN(L$9*PI()/360)+2*_R*L$9*PI()/180)) -> 3.8125 | M30: =MROUND(($B30-2*_R*(1-COS(M$9*PI()/180)))*_xlfn.CSC(M$9*PI()/180),1/16*SIGN(($B30-2*_R*(1-COS(M$9*PI()/180)))*_xlfn.CSC(M$9*PI()/180))) -> 10.8125 | N30: =MROUND(($B30-2*_R*(1-COS(N$9*PI()/180)))*_xlfn.CSC(N$9*PI()/180)+_R*N$9*PI()/180,1/16*SIGN(($B30-2*_R*(1-COS(N$9*PI()/180)))*_xlfn.CSC(N$9*PI()/180)+_R*N$9*PI()/180)) -> 14 | O30: =MROUND(($B30-4*_R)*TAN(O$9*PI()/360)+2*_R*O$9*PI()/180,1/16*SIGN(($B30-4*_R)*TAN(O$9*PI()/360)+2*_R*O$9*PI()/180)) -> 4.9375 | P30: =MROUND(($B30-2*_R*(1-COS(P$9*PI()/180)))*_xlfn.CSC(P$9*PI()/180),1/16*SIGN(($B30-2*_R*(1-COS(P$9*PI()/180)))*_xlfn.CSC(P$9*PI()/180))) -> 6.9375 | Q30: =MROUND(($B30-2*_R*(1-COS(Q$9*PI()/180)))*_xlfn.CSC(Q$9*PI()/180)+_R*Q$9*PI()/180,1/16*SIGN(($B30-2*_R*(1-COS(Q$9*PI()/180)))*_xlfn.CSC(Q$9*PI()/180)+_R*Q$9*PI()/180)) -> 11.125
B31: 11 | C31: 0.9375 | D31: 62.625 | E31: 63.375 | F31: 2.125 | G31: 27.125 | H31: 28.75 | I31: 2.875 | J31: 19.875 | K31: 21.9375 | L31: =MROUND(($B31-4*_R)*TAN(L$9*PI()/360)+2*_R*L$9*PI()/180,1/16*SIGN(($B31-4*_R)*TAN(L$9*PI()/360)+2*_R*L$9*PI()/180)) -> 4.1875 | M31: =MROUND(($B31-2*_R*(1-COS(M$9*PI()/180)))*_xlfn.CSC(M$9*PI()/180),1/16*SIGN(($B31-2*_R*(1-COS(M$9*PI()/180)))*_xlfn.CSC(M$9*PI()/180))) -> 12.25 | N31: =MROUND(($B31-2*_R*(1-COS(N$9*PI()/180)))*_xlfn.CSC(N$9*PI()/180)+_R*N$9*PI()/180,1/16*SIGN(($B31-2*_R*(1-COS(N$9*PI()/180)))*_xlfn.CSC(N$9*PI()/180)+_R*N$9*PI()/180)) -> 15.375 | O31: =MROUND(($B31-4*_R)*TAN(O$9*PI()/360)+2*_R*O$9*PI()/180,1/16*SIGN(($B31-4*_R)*TAN(O$9*PI()/360)+2*_R*O$9*PI()/180)) -> 5.5 | P31: =MROUND(($B31-2*_R*(1-COS(P$9*PI()/180)))*_xlfn.CSC(P$9*PI()/180),1/16*SIGN(($B31-2*_R*(1-COS(P$9*PI()/180)))*_xlfn.CSC(P$9*PI()/180))) -> 8.0625 | Q31: =MROUND(($B31-2*_R*(1-COS(Q$9*PI()/180)))*_xlfn.CSC(Q$9*PI()/180)+_R*Q$9*PI()/180,1/16*SIGN(($B31-2*_R*(1-COS(Q$9*PI()/180)))*_xlfn.CSC(Q$9*PI()/180)+_R*Q$9*PI()/180)) -> 12.25
B32: 12 | C32: 1.0625 | D32: 68.375 | E32: 69.125 | F32: 2.375 | G32: 29.75 | H32: 31.3125 | I32: 3.125 | J32: 21.875 | K32: 23.9375 | L32: =MROUND(($B32-4*_R)*TAN(L$9*PI()/360)+2*_R*L$9*PI()/180,1/16*SIGN(($B32-4*_R)*TAN(L$9*PI()/360)+2*_R*L$9*PI()/180)) -> 4.625 | M32: =MROUND(($B32-2*_R*(1-COS(M$9*PI()/180)))*_xlfn.CSC(M$9*PI()/180),1/16*SIGN(($B32-2*_R*(1-COS(M$9*PI()/180)))*_xlfn.CSC(M$9*PI()/180))) -> 13.6875 | N32: =MROUND(($B32-2*_R*(1-COS(N$9*PI()/180)))*_xlfn.CSC(N$9*PI()/180)+_R*N$9*PI()/180,1/16*SIGN(($B32-2*_R*(1-COS(N$9*PI()/180)))*_xlfn.CSC(N$9*PI()/180)+_R*N$9*PI()/180)) -> 16.8125 | O32: =MROUND(($B32-4*_R)*TAN(O$9*PI()/360)+2*_R*O$9*PI()/180,1/16*SIGN(($B32-4*_R)*TAN(O$9*PI()/360)+2*_R*O$9*PI()/180)) -> 6.0625 | P32: =MROUND(($B32-2*_R*(1-COS(P$9*PI()/180)))*_xlfn.CSC(P$9*PI()/180),1/16*SIGN(($B32-2*_R*(1-COS(P$9*PI()/180)))*_xlfn.CSC(P$9*PI()/180))) -> 9.25 | Q32: =MROUND(($B32-2*_R*(1-COS(Q$9*PI()/180)))*_xlfn.CSC(Q$9*PI()/180)+_R*Q$9*PI()/180,1/16*SIGN(($B32-2*_R*(1-COS(Q$9*PI()/180)))*_xlfn.CSC(Q$9*PI()/180)+_R*Q$9*PI()/180)) -> 13.4375
B33: 13 | C33: 1.125 | D33: 74.1875 | E33: 74.875 | F33: 2.5625 | G33: 32.375 | H33: 33.9375 | I33: 3.375 | J33: 23.875 | K33: 25.9375 | L33: =MROUND(($B33-4*_R)*TAN(L$9*PI()/360)+2*_R*L$9*PI()/180,1/16*SIGN(($B33-4*_R)*TAN(L$9*PI()/360)+2*_R*L$9*PI()/180)) -> 5.0625 | M33: =MROUND(($B33-2*_R*(1-COS(M$9*PI()/180)))*_xlfn.CSC(M$9*PI()/180),1/16*SIGN(($B33-2*_R*(1-COS(M$9*PI()/180)))*_xlfn.CSC(M$9*PI()/180))) -> 15.0625 | N33: =MROUND(($B33-2*_R*(1-COS(N$9*PI()/180)))*_xlfn.CSC(N$9*PI()/180)+_R*N$9*PI()/180,1/16*SIGN(($B33-2*_R*(1-COS(N$9*PI()/180)))*_xlfn.CSC(N$9*PI()/180)+_R*N$9*PI()/180)) -> 18.1875 | O33: =MROUND(($B33-4*_R)*TAN(O$9*PI()/360)+2*_R*O$9*PI()/180,1/16*SIGN(($B33-4*_R)*TAN(O$9*PI()/360)+2*_R*O$9*PI()/180)) -> 6.625 | P33: =MROUND(($B33-2*_R*(1-COS(P$9*PI()/180)))*_xlfn.CSC(P$9*PI()/180),1/16*SIGN(($B33-2*_R*(1-COS(P$9*PI()/180)))*_xlfn.CSC(P$9*PI()/180))) -> 10.375 | Q33: =MROUND(($B33-2*_R*(1-COS(Q$9*PI()/180)))*_xlfn.CSC(Q$9*PI()/180)+_R*Q$9*PI()/180,1/16*SIGN(($B33-2*_R*(1-COS(Q$9*PI()/180)))*_xlfn.CSC(Q$9*PI()/180)+_R*Q$9*PI()/180)) -> 14.5625
B34: 14 | C34: 1.25 | D34: 79.9375 | E34: 80.625 | F34: 2.75 | G34: 35 | H34: 36.5625 | I34: 3.625 | J34: 25.875 | K34: 27.9375 | L34: =MROUND(($B34-4*_R)*TAN(L$9*PI()/360)+2*_R*L$9*PI()/180,1/16*SIGN(($B34-4*_R)*TAN(L$9*PI()/360)+2*_R*L$9*PI()/180)) -> 5.4375 | M34: =MROUND(($B34-2*_R*(1-COS(M$9*PI()/180)))*_xlfn.CSC(M$9*PI()/180),1/16*SIGN(($B34-2*_R*(1-COS(M$9*PI()/180)))*_xlfn.CSC(M$9*PI()/180))) -> 16.5 | N34: =MROUND(($B34-2*_R*(1-COS(N$9*PI()/180)))*_xlfn.CSC(N$9*PI()/180)+_R*N$9*PI()/180,1/16*SIGN(($B34-2*_R*(1-COS(N$9*PI()/180)))*_xlfn.CSC(N$9*PI()/180)+_R*N$9*PI()/180)) -> 19.625 | O34: =MROUND(($B34-4*_R)*TAN(O$9*PI()/360)+2*_R*O$9*PI()/180,1/16*SIGN(($B34-4*_R)*TAN(O$9*PI()/360)+2*_R*O$9*PI()/180)) -> 7.25 | P34: =MROUND(($B34-2*_R*(1-COS(P$9*PI()/180)))*_xlfn.CSC(P$9*PI()/180),1/16*SIGN(($B34-2*_R*(1-COS(P$9*PI()/180)))*_xlfn.CSC(P$9*PI()/180))) -> 11.5625 | Q34: =MROUND(($B34-2*_R*(1-COS(Q$9*PI()/180)))*_xlfn.CSC(Q$9*PI()/180)+_R*Q$9*PI()/180,1/16*SIGN(($B34-2*_R*(1-COS(Q$9*PI()/180)))*_xlfn.CSC(Q$9*PI()/180)+_R*Q$9*PI()/180)) -> 15.75
B35: 15 | C35: 1.3125 | D35: 85.6875 | E35: 86.375 | F35: 2.9375 | G35: 37.625 | H35: 39.1875 | I35: 3.9375 | J35: 27.875 | K35: 29.9375 | L35: =MROUND(($B35-4*_R)*TAN(L$9*PI()/360)+2*_R*L$9*PI()/180,1/16*SIGN(($B35-4*_R)*TAN(L$9*PI()/360)+2*_R*L$9*PI()/180)) -> 5.875 | M35: =MROUND(($B35-2*_R*(1-COS(M$9*PI()/180)))*_xlfn.CSC(M$9*PI()/180),1/16*SIGN(($B35-2*_R*(1-COS(M$9*PI()/180)))*_xlfn.CSC(M$9*PI()/180))) -> 17.875 | N35: =MROUND(($B35-2*_R*(1-COS(N$9*PI()/180)))*_xlfn.CSC(N$9*PI()/180)+_R*N$9*PI()/180,1/16*SIGN(($B35-2*_R*(1-COS(N$9*PI()/180)))*_xlfn.CSC(N$9*PI()/180)+_R*N$9*PI()/180)) -> 21.0625 | O35: =MROUND(($B35-4*_R)*TAN(O$9*PI()/360)+2*_R*O$9*PI()/180,1/16*SIGN(($B35-4*_R)*TAN(O$9*PI()/360)+2*_R*O$9*PI()/180)) -> 7.8125 | P35: =MROUND(($B35-2*_R*(1-COS(P$9*PI()/180)))*_xlfn.CSC(P$9*PI()/180),1/16*SIGN(($B35-2*_R*(1-COS(P$9*PI()/180)))*_xlfn.CSC(P$9*PI()/180))) -> 12.6875 | Q35: =MROUND(($B35-2*_R*(1-COS(Q$9*PI()/180)))*_xlfn.CSC(Q$9*PI()/180)+_R*Q$9*PI()/180,1/16*SIGN(($B35-2*_R*(1-COS(Q$9*PI()/180)))*_xlfn.CSC(Q$9*PI()/180)+_R*Q$9*PI()/180)) -> 16.875
B36: 16 | C36: 1.375 | D36: 91.4375 | E36: 92.125 | F36: 3.125 | G36: 40.1875 | H36: 41.8125 | I36: 4.1875 | J36: 29.875 | K36: 31.9375 | L36: =MROUND(($B36-4*_R)*TAN(L$9*PI()/360)+2*_R*L$9*PI()/180,1/16*SIGN(($B36-4*_R)*TAN(L$9*PI()/360)+2*_R*L$9*PI()/180)) -> 6.3125 | M36: =MROUND(($B36-2*_R*(1-COS(M$9*PI()/180)))*_xlfn.CSC(M$9*PI()/180),1/16*SIGN(($B36-2*_R*(1-COS(M$9*PI()/180)))*_xlfn.CSC(M$9*PI()/180))) -> 19.3125 | N36: =MROUND(($B36-2*_R*(1-COS(N$9*PI()/180)))*_xlfn.CSC(N$9*PI()/180)+_R*N$9*PI()/180,1/16*SIGN(($B36-2*_R*(1-COS(N$9*PI()/180)))*_xlfn.CSC(N$9*PI()/180)+_R*N$9*PI()/180)) -> 22.4375 | O36: =MROUND(($B36-4*_R)*TAN(O$9*PI()/360)+2*_R*O$9*PI()/180,1/16*SIGN(($B36-4*_R)*TAN(O$9*PI()/360)+2*_R*O$9*PI()/180)) -> 8.375 | P36: =MROUND(($B36-2*_R*(1-COS(P$9*PI()/180)))*_xlfn.CSC(P$9*PI()/180),1/16*SIGN(($B36-2*_R*(1-COS(P$9*PI()/180)))*_xlfn.CSC(P$9*PI()/180))) -> 13.875 | Q36: =MROUND(($B36-2*_R*(1-COS(Q$9*PI()/180)))*_xlfn.CSC(Q$9*PI()/180)+_R*Q$9*PI()/180,1/16*SIGN(($B36-2*_R*(1-COS(Q$9*PI()/180)))*_xlfn.CSC(Q$9*PI()/180)+_R*Q$9*PI()/180)) -> 18.0625
B37: 17 | C37: 1.5 | D37: 97.1875 | E37: 97.875 | F37: 3.3125 | G37: 42.8125 | H37: 44.375 | I37: 4.4375 | J37: 31.875 | K37: 33.9375 | L37: =MROUND(($B37-4*_R)*TAN(L$9*PI()/360)+2*_R*L$9*PI()/180,1/16*SIGN(($B37-4*_R)*TAN(L$9*PI()/360)+2*_R*L$9*PI()/180)) -> 6.6875 | M37: =MROUND(($B37-2*_R*(1-COS(M$9*PI()/180)))*_xlfn.CSC(M$9*PI()/180),1/16*SIGN(($B37-2*_R*(1-COS(M$9*PI()/180)))*_xlfn.CSC(M$9*PI()/180))) -> 20.75 | N37: =MROUND(($B37-2*_R*(1-COS(N$9*PI()/180)))*_xlfn.CSC(N$9*PI()/180)+_R*N$9*PI()/180,1/16*SIGN(($B37-2*_R*(1-COS(N$9*PI()/180)))*_xlfn.CSC(N$9*PI()/180)+_R*N$9*PI()/180)) -> 23.875 | O37: =MROUND(($B37-4*_R)*TAN(O$9*PI()/360)+2*_R*O$9*PI()/180,1/16*SIGN(($B37-4*_R)*TAN(O$9*PI()/360)+2*_R*O$9*PI()/180)) -> 8.9375 | P37: =MROUND(($B37-2*_R*(1-COS(P$9*PI()/180)))*_xlfn.CSC(P$9*PI()/180),1/16*SIGN(($B37-2*_R*(1-COS(P$9*PI()/180)))*_xlfn.CSC(P$9*PI()/180))) -> 15 | Q37: =MROUND(($B37-2*_R*(1-COS(Q$9*PI()/180)))*_xlfn.CSC(Q$9*PI()/180)+_R*Q$9*PI()/180,1/16*SIGN(($B37-2*_R*(1-COS(Q$9*PI()/180)))*_xlfn.CSC(Q$9*PI()/180)+_R*Q$9*PI()/180)) -> 19.1875
B38: 18 | C38: 1.5625 | D38: 102.9375 | E38: 103.625 | F38: 3.5625 | G38: 45.4375 | H38: 47 | I38: 4.75 | J38: 33.875 | K38: 35.9375 | L38: =MROUND(($B38-4*_R)*TAN(L$9*PI()/360)+2*_R*L$9*PI()/180,1/16*SIGN(($B38-4*_R)*TAN(L$9*PI()/360)+2*_R*L$9*PI()/180)) -> 7.125 | M38: =MROUND(($B38-2*_R*(1-COS(M$9*PI()/180)))*_xlfn.CSC(M$9*PI()/180),1/16*SIGN(($B38-2*_R*(1-COS(M$9*PI()/180)))*_xlfn.CSC(M$9*PI()/180))) -> 22.125 | N38: =MROUND(($B38-2*_R*(1-COS(N$9*PI()/180)))*_xlfn.CSC(N$9*PI()/180)+_R*N$9*PI()/180,1/16*SIGN(($B38-2*_R*(1-COS(N$9*PI()/180)))*_xlfn.CSC(N$9*PI()/180)+_R*N$9*PI()/180)) -> 25.3125 | O38: =MROUND(($B38-4*_R)*TAN(O$9*PI()/360)+2*_R*O$9*PI()/180,1/16*SIGN(($B38-4*_R)*TAN(O$9*PI()/360)+2*_R*O$9*PI()/180)) -> 9.5625 | P38: =MROUND(($B38-2*_R*(1-COS(P$9*PI()/180)))*_xlfn.CSC(P$9*PI()/180),1/16*SIGN(($B38-2*_R*(1-COS(P$9*PI()/180)))*_xlfn.CSC(P$9*PI()/180))) -> 16.1875 | Q38: =MROUND(($B38-2*_R*(1-COS(Q$9*PI()/180)))*_xlfn.CSC(Q$9*PI()/180)+_R*Q$9*PI()/180,1/16*SIGN(($B38-2*_R*(1-COS(Q$9*PI()/180)))*_xlfn.CSC(Q$9*PI()/180)+_R*Q$9*PI()/180)) -> 20.375
B39: 19 | C39: 1.6875 | D39: 108.6875 | E39: 109.4375 | F39: 3.75 | G39: 48.0625 | H39: 49.625 | I39: 5 | J39: 35.875 | K39: 37.9375 | L39: =MROUND(($B39-4*_R)*TAN(L$9*PI()/360)+2*_R*L$9*PI()/180,1/16*SIGN(($B39-4*_R)*TAN(L$9*PI()/360)+2*_R*L$9*PI()/180)) -> 7.5 | M39: =MROUND(($B39-2*_R*(1-COS(M$9*PI()/180)))*_xlfn.CSC(M$9*PI()/180),1/16*SIGN(($B39-2*_R*(1-COS(M$9*PI()/180)))*_xlfn.CSC(M$9*PI()/180))) -> 23.5625 | N39: =MROUND(($B39-2*_R*(1-COS(N$9*PI()/180)))*_xlfn.CSC(N$9*PI()/180)+_R*N$9*PI()/180,1/16*SIGN(($B39-2*_R*(1-COS(N$9*PI()/180)))*_xlfn.CSC(N$9*PI()/180)+_R*N$9*PI()/180)) -> 26.6875 | O39: =MROUND(($B39-4*_R)*TAN(O$9*PI()/360)+2*_R*O$9*PI()/180,1/16*SIGN(($B39-4*_R)*TAN(O$9*PI()/360)+2*_R*O$9*PI()/180)) -> 10.125 | P39: =MROUND(($B39-2*_R*(1-COS(P$9*PI()/180)))*_xlfn.CSC(P$9*PI()/180),1/16*SIGN(($B39-2*_R*(1-COS(P$9*PI()/180)))*_xlfn.CSC(P$9*PI()/180))) -> 17.3125 | Q39: =MROUND(($B39-2*_R*(1-COS(Q$9*PI()/180)))*_xlfn.CSC(Q$9*PI()/180)+_R*Q$9*PI()/180,1/16*SIGN(($B39-2*_R*(1-COS(Q$9*PI()/180)))*_xlfn.CSC(Q$9*PI()/180)+_R*Q$9*PI()/180)) -> 21.5
B40: 20 | C40: 1.75 | D40: 114.5 | E40: 115.1875 | F40: 3.9375 | G40: 50.6875 | H40: 52.25 | I40: 5.25 | J40: 37.875 | K40: 39.9375 | L40: =MROUND(($B40-4*_R)*TAN(L$9*PI()/360)+2*_R*L$9*PI()/180,1/16*SIGN(($B40-4*_R)*TAN(L$9*PI()/360)+2*_R*L$9*PI()/180)) -> 7.9375 | M40: =MROUND(($B40-2*_R*(1-COS(M$9*PI()/180)))*_xlfn.CSC(M$9*PI()/180),1/16*SIGN(($B40-2*_R*(1-COS(M$9*PI()/180)))*_xlfn.CSC(M$9*PI()/180))) -> 25 | N40: =MROUND(($B40-2*_R*(1-COS(N$9*PI()/180)))*_xlfn.CSC(N$9*PI()/180)+_R*N$9*PI()/180,1/16*SIGN(($B40-2*_R*(1-COS(N$9*PI()/180)))*_xlfn.CSC(N$9*PI()/180)+_R*N$9*PI()/180)) -> 28.125 | O40: =MROUND(($B40-4*_R)*TAN(O$9*PI()/360)+2*_R*O$9*PI()/180,1/16*SIGN(($B40-4*_R)*TAN(O$9*PI()/360)+2*_R*O$9*PI()/180)) -> 10.6875 | P40: =MROUND(($B40-2*_R*(1-COS(P$9*PI()/180)))*_xlfn.CSC(P$9*PI()/180),1/16*SIGN(($B40-2*_R*(1-COS(P$9*PI()/180)))*_xlfn.CSC(P$9*PI()/180))) -> 18.5 | Q40: =MROUND(($B40-2*_R*(1-COS(Q$9*PI()/180)))*_xlfn.CSC(Q$9*PI()/180)+_R*Q$9*PI()/180,1/16*SIGN(($B40-2*_R*(1-COS(Q$9*PI()/180)))*_xlfn.CSC(Q$9*PI()/180)+_R*Q$9*PI()/180)) -> 22.6875
B41: 21 | C41: 1.8125 | D41: 120.25 | E41: 120.9375 | F41: 4.125 | G41: 53.3125 | H41: 54.875 | I41: 5.5 | J41: 39.875 | K41: 41.9375 | L41: =MROUND(($B41-4*_R)*TAN(L$9*PI()/360)+2*_R*L$9*PI()/180,1/16*SIGN(($B41-4*_R)*TAN(L$9*PI()/360)+2*_R*L$9*PI()/180)) -> 8.375 | M41: =MROUND(($B41-2*_R*(1-COS(M$9*PI()/180)))*_xlfn.CSC(M$9*PI()/180),1/16*SIGN(($B41-2*_R*(1-COS(M$9*PI()/180)))*_xlfn.CSC(M$9*PI()/180))) -> 26.375 | N41: =MROUND(($B41-2*_R*(1-COS(N$9*PI()/180)))*_xlfn.CSC(N$9*PI()/180)+_R*N$9*PI()/180,1/16*SIGN(($B41-2*_R*(1-COS(N$9*PI()/180)))*_xlfn.CSC(N$9*PI()/180)+_R*N$9*PI()/180)) -> 29.5 | O41: =MROUND(($B41-4*_R)*TAN(O$9*PI()/360)+2*_R*O$9*PI()/180,1/16*SIGN(($B41-4*_R)*TAN(O$9*PI()/360)+2*_R*O$9*PI()/180)) -> 11.25 | P41: =MROUND(($B41-2*_R*(1-COS(P$9*PI()/180)))*_xlfn.CSC(P$9*PI()/180),1/16*SIGN(($B41-2*_R*(1-COS(P$9*PI()/180)))*_xlfn.CSC(P$9*PI()/180))) -> 19.625 | Q41: =MROUND(($B41-2*_R*(1-COS(Q$9*PI()/180)))*_xlfn.CSC(Q$9*PI()/180)+_R*Q$9*PI()/180,1/16*SIGN(($B41-2*_R*(1-COS(Q$9*PI()/180)))*_xlfn.CSC(Q$9*PI()/180)+_R*Q$9*PI()/180)) -> 23.8125
B42: 22 | C42: 1.9375 | D42: 126 | E42: 126.6875 | F42: 4.3125 | G42: 55.875 | H42: 57.4375 | I42: 5.8125 | J42: 41.875 | K42: 43.9375 | L42: =MROUND(($B42-4*_R)*TAN(L$9*PI()/360)+2*_R*L$9*PI()/180,1/16*SIGN(($B42-4*_R)*TAN(L$9*PI()/360)+2*_R*L$9*PI()/180)) -> 8.75 | M42: =MROUND(($B42-2*_R*(1-COS(M$9*PI()/180)))*_xlfn.CSC(M$9*PI()/180),1/16*SIGN(($B42-2*_R*(1-COS(M$9*PI()/180)))*_xlfn.CSC(M$9*PI()/180))) -> 27.8125 | N42: =MROUND(($B42-2*_R*(1-COS(N$9*PI()/180)))*_xlfn.CSC(N$9*PI()/180)+_R*N$9*PI()/180,1/16*SIGN(($B42-2*_R*(1-COS(N$9*PI()/180)))*_xlfn.CSC(N$9*PI()/180)+_R*N$9*PI()/180)) -> 30.9375 | O42: =MROUND(($B42-4*_R)*TAN(O$9*PI()/360)+2*_R*O$9*PI()/180,1/16*SIGN(($B42-4*_R)*TAN(O$9*PI()/360)+2*_R*O$9*PI()/180)) -> 11.8125 | P42: =MROUND(($B42-2*_R*(1-COS(P$9*PI()/180)))*_xlfn.CSC(P$9*PI()/180),1/16*SIGN(($B42-2*_R*(1-COS(P$9*PI()/180)))*_xlfn.CSC(P$9*PI()/180))) -> 20.8125 | Q42: =MROUND(($B42-2*_R*(1-COS(Q$9*PI()/180)))*_xlfn.CSC(Q$9*PI()/180)+_R*Q$9*PI()/180,1/16*SIGN(($B42-2*_R*(1-COS(Q$9*PI()/180)))*_xlfn.CSC(Q$9*PI()/180)+_R*Q$9*PI()/180)) -> 25
B43: 23 | C43: 2 | D43: 131.75 | E43: 132.4375 | F43: 4.5625 | G43: 58.5 | H43: 60.0625 | I43: 6.0625 | J43: 43.875 | K43: 45.9375 | L43: =MROUND(($B43-4*_R)*TAN(L$9*PI()/360)+2*_R*L$9*PI()/180,1/16*SIGN(($B43-4*_R)*TAN(L$9*PI()/360)+2*_R*L$9*PI()/180)) -> 9.1875 | M43: =MROUND(($B43-2*_R*(1-COS(M$9*PI()/180)))*_xlfn.CSC(M$9*PI()/180),1/16*SIGN(($B43-2*_R*(1-COS(M$9*PI()/180)))*_xlfn.CSC(M$9*PI()/180))) -> 29.1875 | N43: =MROUND(($B43-2*_R*(1-COS(N$9*PI()/180)))*_xlfn.CSC(N$9*PI()/180)+_R*N$9*PI()/180,1/16*SIGN(($B43-2*_R*(1-COS(N$9*PI()/180)))*_xlfn.CSC(N$9*PI()/180)+_R*N$9*PI()/180)) -> 32.375 | O43: =MROUND(($B43-4*_R)*TAN(O$9*PI()/360)+2*_R*O$9*PI()/180,1/16*SIGN(($B43-4*_R)*TAN(O$9*PI()/360)+2*_R*O$9*PI()/180)) -> 12.4375 | P43: =MROUND(($B43-2*_R*(1-COS(P$9*PI()/180)))*_xlfn.CSC(P$9*PI()/180),1/16*SIGN(($B43-2*_R*(1-COS(P$9*PI()/180)))*_xlfn.CSC(P$9*PI()/180))) -> 21.9375 | Q43: =MROUND(($B43-2*_R*(1-COS(Q$9*PI()/180)))*_xlfn.CSC(Q$9*PI()/180)+_R*Q$9*PI()/180,1/16*SIGN(($B43-2*_R*(1-COS(Q$9*PI()/180)))*_xlfn.CSC(Q$9*PI()/180)+_R*Q$9*PI()/180)) -> 26.125
B44: 24 | C44: 2.125 | D44: 137.5 | E44: 138.1875 | F44: 4.75 | G44: 61.125 | H44: 62.6875 | I44: 6.3125 | J44: 45.875 | K44: 47.9375 | L44: =MROUND(($B44-4*_R)*TAN(L$9*PI()/360)+2*_R*L$9*PI()/180,1/16*SIGN(($B44-4*_R)*TAN(L$9*PI()/360)+2*_R*L$9*PI()/180)) -> 9.625 | M44: =MROUND(($B44-2*_R*(1-COS(M$9*PI()/180)))*_xlfn.CSC(M$9*PI()/180),1/16*SIGN(($B44-2*_R*(1-COS(M$9*PI()/180)))*_xlfn.CSC(M$9*PI()/180))) -> 30.625 | N44: =MROUND(($B44-2*_R*(1-COS(N$9*PI()/180)))*_xlfn.CSC(N$9*PI()/180)+_R*N$9*PI()/180,1/16*SIGN(($B44-2*_R*(1-COS(N$9*PI()/180)))*_xlfn.CSC(N$9*PI()/180)+_R*N$9*PI()/180)) -> 33.75 | O44: =MROUND(($B44-4*_R)*TAN(O$9*PI()/360)+2*_R*O$9*PI()/180,1/16*SIGN(($B44-4*_R)*TAN(O$9*PI()/360)+2*_R*O$9*PI()/180)) -> 13 | P44: =MROUND(($B44-2*_R*(1-COS(P$9*PI()/180)))*_xlfn.CSC(P$9*PI()/180),1/16*SIGN(($B44-2*_R*(1-COS(P$9*PI()/180)))*_xlfn.CSC(P$9*PI()/180))) -> 23.125 | Q44: =MROUND(($B44-2*_R*(1-COS(Q$9*PI()/180)))*_xlfn.CSC(Q$9*PI()/180)+_R*Q$9*PI()/180,1/16*SIGN(($B44-2*_R*(1-COS(Q$9*PI()/180)))*_xlfn.CSC(Q$9*PI()/180)+_R*Q$9*PI()/180)) -> 27.3125
B45: 25 | C45: 2.1875 | D45: 143.25 | E45: 143.9375 | F45: 4.9375 | G45: 63.75 | H45: 65.3125 | I45: 6.625 | J45: 47.875 | K45: 49.9375 | L45: =MROUND(($B45-4*_R)*TAN(L$9*PI()/360)+2*_R*L$9*PI()/180,1/16*SIGN(($B45-4*_R)*TAN(L$9*PI()/360)+2*_R*L$9*PI()/180)) -> 10 | M45: =MROUND(($B45-2*_R*(1-COS(M$9*PI()/180)))*_xlfn.CSC(M$9*PI()/180),1/16*SIGN(($B45-2*_R*(1-COS(M$9*PI()/180)))*_xlfn.CSC(M$9*PI()/180))) -> 32.0625 | N45: =MROUND(($B45-2*_R*(1-COS(N$9*PI()/180)))*_xlfn.CSC(N$9*PI()/180)+_R*N$9*PI()/180,1/16*SIGN(($B45-2*_R*(1-COS(N$9*PI()/180)))*_xlfn.CSC(N$9*PI()/180)+_R*N$9*PI()/180)) -> 35.1875 | O45: =MROUND(($B45-4*_R)*TAN(O$9*PI()/360)+2*_R*O$9*PI()/180,1/16*SIGN(($B45-4*_R)*TAN(O$9*PI()/360)+2*_R*O$9*PI()/180)) -> 13.5625 | P45: =MROUND(($B45-2*_R*(1-COS(P$9*PI()/180)))*_xlfn.CSC(P$9*PI()/180),1/16*SIGN(($B45-2*_R*(1-COS(P$9*PI()/180)))*_xlfn.CSC(P$9*PI()/180))) -> 24.25 | Q45: =MROUND(($B45-2*_R*(1-COS(Q$9*PI()/180)))*_xlfn.CSC(Q$9*PI()/180)+_R*Q$9*PI()/180,1/16*SIGN(($B45-2*_R*(1-COS(Q$9*PI()/180)))*_xlfn.CSC(Q$9*PI()/180)+_R*Q$9*PI()/180)) -> 28.4375
A48: Development of Standard Reference Table
B50: Bend Offset | C50: 8 | D50: in | E50: Grab the table value from above and divide
E51: by the bend offset to normalize.
B52: Angle | C52: Shrinkage | D52: Bend Mult.
B53: 10 | C53: =MROUND(INDEX($C$11:$Q$45,MATCH(_BO,$B$11:$B$45,0),1+3*(ROWS($C$53:C53)-1))/_BO,1/16) -> 0.0625 | D53: =INDEX($C$11:$Q$45,MATCH(_BO,$B$11:$B$45,0),3+3*(ROWS($C$53:C53)-1))/_BO -> 5.7578125
B54: 22.5 | C54: =MROUND(INDEX($C$11:$Q$45,MATCH(_BO,$B$11:$B$45,0),1+3*(ROWS($C$53:C54)-1))/_BO,1/16) -> 0.1875 | D54: =INDEX($C$11:$Q$45,MATCH(_BO,$B$11:$B$45,0),3+3*(ROWS($C$53:C54)-1))/_BO -> 2.609375
B55: 30 | C55: =MROUND(INDEX($C$11:$Q$45,MATCH(_BO,$B$11:$B$45,0),1+3*(ROWS($C$53:C55)-1))/_BO,1/16) -> 0.25 | D55: =INDEX($C$11:$Q$45,MATCH(_BO,$B$11:$B$45,0),3+3*(ROWS($C$53:C55)-1))/_BO -> 1.9921875
B56: 45 | C56: =MROUND(INDEX($C$11:$Q$45,MATCH(_BO,$B$11:$B$45,0),1+3*(ROWS($C$53:C56)-1))/_BO,1/16) -> 0.375 | D56: =INDEX($C$11:$Q$45,MATCH(_BO,$B$11:$B$45,0),3+3*(ROWS($C$53:C56)-1))/_BO -> 1.390625
B57: 60 | C57: =MROUND(INDEX($C$11:$Q$45,MATCH(_BO,$B$11:$B$45,0),1+3*(ROWS($C$53:C57)-1))/_BO,1/16) -> 0.5 | D57: =INDEX($C$11:$Q$45,MATCH(_BO,$B$11:$B$45,0),3+3*(ROWS($C$53:C57)-1))/_BO -> 1.1015625
